Workbook

Sheet Disclaimer
A1: DISCLAIMER
A3: This document contains forward-looking statements regarding intention, expectations or estimates of the Company or its management at the date of issue thereof, relating to various aspects, including the growth of various lines of business and the business overall, the market share, the results of the Company and other aspects of the activity and status thereof. Analysts and investors should bear in mind that such estimates do not amount to any warranty as to the future behaviour or results of the Company, and they shall bear all risks and uncertainties with regard to relevant aspects, and thus, the real future results and behaviour of the Company might be substantially different from what is stated in the said predictions or estimates. | B3: The statements in this statement should be taken into account by any persons or entities who may have to make decisions or prepare or disseminate opinions on securities issued by the Company and, in particular, by the analysts who handle this document. All are invited to consult the documentation and information published or registered by the Company before the National Securities Market Commission. The financial information contained in this document has been prepared under International Financial Reporting Standards (IFRS). This financial information is unaudited and, therefore, is subject to potential future modifications. This document is only provided for information purposes and does not constitute, nor may it be interpreted as, an offer to sell or exchange or acquire, or solicitation for offers to purchase or accept any kind of compromise.

Sheet P&L
A1: CONSOLIDATED PROFIT AND LOSS ACCOUNT
A3: Thousand Euro | B3: IFRS
B4: 2021 | C4: 2020 | D4: Var Abs | E4: Var %
A5: Circulation revenues | B5: 112781.4475 | C5: 117110.9912 | D5: -4329.54366 | E5: -0.03696957576
A6: Advertising revenues | B6: 147871.657 | C6: 141140.7052 | D6: 6730.951876 | E6: 0.04768965741
A7: Other revenues | B7: 91686.27573 | C7: 83086.04442 | D7: 8600.231305 | E7: 0.103509938
A8: Total revenue | B8: 352339.3803 | C8: 341337.7408 | D8: 11001.63952 | E8: 0.03223094961
A9: Staff costs | B9: -143637.7198 | C9: -151135.2145 | D9: 7497.494729 | E9: 0.0496078611
A10: Procurements | B10: -25183.2752 | C10: -26926.40478 | D10: 1743.129575 | E10: 0.06473681092
A11: External Services | B11: -136741.2862 | C11: -137113.5465 | D11: 372.260236 | E11: 0.002714977809
A12: Provisions | B12: -1741.45886 | C12: -4439.46611 | D12: 2698.00725 | E12: 0.6077323676
A13: Operating expenses (without D&A) | B13: -307303.7401 | C13: -319614.6319 | D13: 12310.89179 | E13: 0.03851792303
A14: EBITDA | B14: 45035.64022 | C14: 21723.10891 | D14: 23312.53131 | E14: n.r.
A15: Depreciation and amortization | B15: -20497.0061 | C15: -19792.3223 | D15: -704.6838 | E15: -0.03560389677
A16: Impairment/gains on disposal of tan. & intan. assets | B16: 10821.65344 | C16: -8460.25397 | D16: 19281.90741 | E16: n.r.
A17: EBIT | B17: 35360.28756 | C17: -6529.467362 | D17: 41889.75492 | E17: n.r.
A18: Impairments/reversal of other intangible assets | B18: -2000 | C18: -11813 | D18: 9813 | E18: 0.830694997
A19: Profit of companies acc. equity method | B19: -255.4301322 | C19: -2830.536664 | D19: 2575.106532 | E19: 0.9097591155
A20: Net financial income | B20: -3818.815688 | C20: 33.24440177 | D20: -3852.06009 | E20: n.r.
A21: Net gains on disposal of non- current assets | B21: -1925.02131 | C21: 192.71052 | D21: -2117.73183 | E21: n.r.
A22: Profit before taxes | B22: 27361.02043 | C22: -20947.0491 | D22: 48308.06953 | E22: n.r.
A23: Corporation tax | B23: -6229.327925 | C23: 1020.550675 | D23: -7249.8786 | E23: n.r.
A24: Net profit for the year | B24: 21131.6925 | C24: -19926.49843 | D24: 41058.19093 | E24: n.r.
A25: Minority interests | B25: -7511.760556 | C25: -1826.126439 | D25: -5685.634118 | E25: n.r.
A26: Net profit attributable to the parent | B26: 13619.93195 | C26: -21752.62487 | D26: 35372.55681 | E26: n.r.
A28: Staff costs ex non recurring costs | B28: -143637.7198 | C28: -139646.3348 | D28: -3991.384981 | E28: -0.02858209625
A29: Operating Expenses ex non recurring costs | B29: -307303.7401 | C29: -308125.7521 | D29: 822.0120796 | E29: 0.00266778117
A30: Comparable EBITDA | B30: 45035.64022 | C30: 33211.98862 | D30: 11823.6516 | E30: 0.3560055297

Sheet Balance Sheet
A1: CONSOLIDATED BALANCE SHEETS
A3: Thousand Euro | B3: IFRS | F3: Thousand Euro | G3: IFRS
B4: 2021 | C4: 2020 | D4: Var abs | G4: 2021 | H4: 2020 | I4: Var abs
A5: ASSETS | F5: EQUITY AND LIABILITIES
A6: NON CURRENT ASSETS | F6: EQUITY
A7: Intangible assets | B7: 145806.5835 | C7: 146305.8139 | D7: -499.23039 | F7: Of the Parent | G7: 204511.9193 | H7: 191734.4796 | I7: 12777.43972
A8: Goodwill | B8: 94519.95141 | C8: 94923.93741 | D8: -403.986 | F8: Share capital | G8: 24863.94861 | H8: 24994.06121 | I8: -130.1126
A9: Intangible assets | B9: 51286.63212 | C9: 51381.87651 | D9: -95.24439 | F9: Reserves | G9: 174240.9079 | H9: 199035.0067 | I9: -24794.09885
A10: Property, plant and equipment | B10: 94812.18237 | C10: 98344.86595 | D10: -3532.683578 | F10: Treasury shares | G10: -8212.86908 | H10: -10541.96343 | I10: 2329.09435
A11: Use of leases | B11: 20114.43605 | C11: 19618.96929 | D11: 495.46676 | F11: Net profit for the year | G11: 13619.93195 | H11: -21752.62487 | I11: 35372.55681
A12: Investments accounted for using the equity method | B12: 4384.987288 | C12: 17121.3559 | D12: -12736.36862 | F12: Of minority interest | G12: 64181.96937 | H12: 64522.81648 | I12: -340.8471127
A13: Financial assets | B13: 3629.415445 | C13: 3693.509965 | D13: -64.09452
A14: Non-current investment securities | B14: 2641.55603 | C14: 2641.90704 | D14: -0.35101
A15: Other non current financial assets | B15: 987.859415 | C15: 1051.602925 | D15: -63.74351 | F15: NON CURRENT LIABILITIES
A16: Other non current receivables | B16: 1145.455171 | C16: 2236.241953 | D16: -1090.786782 | F16: Deferred income | G16: 14.67657 | H16: 51.16766 | I16: -36.49109
A17: Deferred tax assets | B17: 52122.41669 | C17: 55333.00827 | D17: -3210.59158 | F17: Provisions | G17: 1331.7355 | H17: 1197.81313 | I17: 133.92237
B18: 322015.4765 | C18: 342653.7653 | D18: -20638.28871 | F18: Bank borrowings and other financial liabilities | G18: 24927.40849 | H18: 53695.67317 | I18: -28768.26468
A19: CURRENT ASSETS | F19: Other non-current payables | G19: 16218.39986 | H19: 15416.92649 | I19: 801.4733733
A20: Inventories | B20: 12184.55366 | C20: 19149.432 | D20: -6964.87833 | F20: Deferred tax liabilities | G20: 11445.27931 | H20: 10958.66831 | I20: 486.610995
A21: Trade and other receivables | B21: 65666.60966 | C21: 79073.41778 | D21: -13406.80812 | G21: 53937.49973 | H21: 81320.24876 | I21: -27382.74903
A22: Tax receivables | B22: 2155.62087 | C22: 3440.006315 | D22: -1284.385445 | F22: CURRENT LIABILITIES
A23: Cash and cash equivalents | B23: 29232.85821 | C23: 25065.33269 | D23: 4167.525523 | F23: Bank borrowings and other financial liabilities | G23: 27758.12947 | H23: 39026.64987 | I23: -11268.5204
B24: 109239.6424 | C24: 126728.1888 | D24: -17488.54637 | F24: Trade and other payables | G24: 72249.60458 | H24: 86700.01519 | I24: -14450.41062
F25: Tax payables | G25: 10062.25984 | H25: 13160.41859 | I25: -3098.158752
A26: Assets held for sale and discontinued operations | B26: 1446.26338 | C26: 7082.67457 | D26: -5636.41119 | G26: 110069.9939 | H26: 138887.0837 | I26: -28817.08977
A28: TOTAL ASSETS | B28: 432701.3823 | C28: 476464.6286 | D28: -43763.24627 | F28: TOTAL EQUITY AND LIABILITIES | G28: 432701.3823 | H28: 476464.6285 | I28: -43763.24619

Sheet Net Debt
A1: NET DEBT
A3: Thousand Euro | B3: IFRS
B4: 2021 | C4: 2020 | D4: Var Abs | E4: Var %
A6: Bank borrowings and other financial liabilities (s.t.) | B6: 27758.12947 | C6: 39026.64987 | D6: -11268.5204 | E6: -0.2887391163
A7: Bank borrowings and other financial liabilities (l.t.) | B7: 24927.40849 | C7: 53695.67317 | D7: -28768.26468 | E7: -0.5357650436
A8: Gross debt | B8: 52685.53797 | C8: 92722.32304 | D8: -40036.78508 | E8: -0.4317922994
A9: + Cash and cash equivalents | B9: 29355.64821 | C9: 25175.23869 | D9: 4180.409523 | E9: 0.1660524285
A10: + Other non current financial asstes | B10: 801.164665 | C10: 1599.205482 | D10: -798.0408166 | E10: -0.4990233124
A11: Deferred expenses | B11: 470.27685 | C11: 1331.90036 | D11: -861.62351 | E11: -0.6469128892
A12: Net cash position/ (net debt) | B12: -22999.00194 | C12: -67279.77923 | D12: 44280.77729 | E12: 0.6581587781

Sheet CashFlow
A1: CASH FLOW STATEMENT
A3: Thousand Euro | B3: IFRS
B4: 2021 | C4: 2020 | D4: Var Abs | E4: % Var
A6: Net profit attibutable to the parent | B6: 13619.93195 | C6: -21752.62478 | D6: 35372.55673 | E6: n.r.
A7: Adjustments to net profit | B7: 33420.32813 | C7: 47869.0059 | D7: -14448.67777 | E7: -0.3018378489
A8: Cash flows from ordinary operating activities before changes in working capital | B8: 47040.26008 | C8: 26116.38112 | D8: 20923.87896 | E8: 0.8011783432
A9: Changes in working capital & others | B9: 3716.524166 | C9: -4608.18199 | D9: 8324.706156 | E9: n.r.
A10: Other payables | B10: -887.3407599 | C10: 6129.31535 | D10: -7016.65611 | E10: n.r.
A11: Income tax paid | B11: -2391.07965 | C11: -3163.54475 | D11: 772.4651 | E11: 0.2441770738
A12: Interests deduction for tax purposes | B12: -804.22159 | C12: -898.56371 | D12: 94.34212 | E12: 0.1049921324
A13: Net cash flow from operating activities (I) | B13: 46674.14224 | C13: 23575.40602 | D13: 23098.73622 | E13: 0.9797810567
A14: Acquisitions of intangible and property, plan and equipment | B14: -14887.83767 | C14: -14183.36429 | D14: -704.4733818 | E14: -0.04966899019
A15: Acquisitions of financial assets, subsidiaries and associates | B15: 22341.15593 | C15: -1368.207677 | D15: 23709.3636 | E15: n.r.
A16: Interests and dividends received | B16: 461.0313927 | C16: 353.33711 | D16: 107.6942827 | E16: 0.304791882
A17: Other receivables and payables (investing) | B17: 619.47433 | C17: 1232.20804 | D17: -612.73371 | E17: -0.4972648206
A18: Net cash flow from investing activities (II) | B18: 8533.823977 | C18: -13966.02682 | D18: 22499.85079 | E18: n.r.
A19: Interests and dividends paid | B19: -6415.104499 | C19: -6772.307759 | D19: 357.2032607 | E19: 0.05274468812
A20: Cash inflows/ (outflows) relating to bank borrowings | B20: -10903.44236 | C20: 420.42608 | D20: -11323.86844 | E20: n.r.
A21: Other receivables and payables (financing) | B21: -33476.84924 | C21: 4221.34007 | D21: -37698.18931 | E21: n.r.
A22: Equity related instruments without financial cost | B22: -136.16 | C22: 0 | D22: -136.16 | E22: n.a.
A23: Equity related instruments with financial cost | B23: -96 | C23: 0 | D23: -96 | E23: n.a.
A24: Net cash flows from financing activities (III) | B24: -51027.5561 | C24: -2130.541609 | D24: -48897.01449 | E24: n.r.
A25: Net increase in cash and cash equivalents (I + II + III) | B25: 4180.410121 | C25: 7478.837594 | D25: -3298.427473 | E25: -0.4410347773
A26: Cash and cash equivalents from acquired companies | B26: 0 | C26: 0 | D26: 0 | E26: n.a.
A27: Cash and cash equivalents of discounted operations | B27: 0 | C27: 0 | D27: 0 | E27: n.a.
A28: Cash and cash equivalents at beginning of the year | B28: 25175.23808 | C28: 17696.40065 | D28: 7478.837426 | E28: 0.4226191288
A29: Cash and cash equivalents at end of year | B29: 29355.64858 | C29: 25175.23824 | D29: 4180.410338 | E29: 0.1660524638

Sheet CAPEX
A1: CAPEX: (Additions to PPE and intangible assets)
A3: Thousand Euro | B3: IFRS
B4: 2021 | E4: 2020 | F4: 1S20 | H4: Var Abs
B5: Inmat. | C5: Mat. | D5: Total | E5: Inmat. | F5: Mat. | G5: Total | H5: Inmat. | I5: Mat. | J5: Total
A6: Newspapers | B6: 5794.112728 | C6: 5767.49462 | D6: 11561.60735 | E6: 5321.42229 | F6: 10872.407 | G6: 16193.82929 | H6: 472.6904374 | I6: -5104.91238 | J6: -4632.221943
A7: Audiovisual | B7: 2.972985601 | C7: 1.23796 | D7: 4.210945601 | E7: 5.302166726 | F7: 28.508 | G7: 33.81016673 | H7: -2.329181125 | I7: -27.27004 | J7: -29.59922113
A8: Classified | B8: 567.8713503 | C8: 72.86088 | D8: 640.7322303 | E8: 318.3454992 | F8: 75.208 | G8: 393.5534992 | H8: 249.5258511 | I8: -2.34712 | J8: 247.1787311
A9: Gastronomy & Others | B9: 78.52183241 | C9: 109.49425 | D9: 188.0160824 | E9: 106.4843211 | F9: 42.711 | G9: 149.1953211 | H9: -27.96248868 | I9: 66.78325 | J9: 38.82076132
A10: Corporate | B10: 247.0658499 | C10: 41.45086 | D10: 288.5167099 | E10: 298.0725855 | F10: 70.924 | G10: 368.9965855 | H10: -51.00673562 | I10: -29.47314 | J10: -80.47987562
A11: TOTAL | B11: 6690.544746 | C11: 5992.53857 | D11: 12683.08332 | E11: 6049.626863 | F11: 11089.758 | G11: 17139.38486 | H11: 640.9178831 | I11: -5097.21943 | J11: -4456.301547

Sheet Line of Activity
A1: LINE OF ACTIVITY
A3: Thousand Euro | B3: IFRS | G3: IFRS | L3: IFRS | Q3: IFRS
B4: 1Q21 | C4: 1Q20 | D4: Var Abs | E4: Var % | G4: 1H21 | H4: 1H20 | I4: Var Abs | J4: Var % | L4: 9M21 | M4: 9M20 | N4: Var Abs | O4: Var % | Q4: 2021 | R4: 2020 | S4: Var Abs | T4: Var %
A6: Circulation Revenues
A7: Newpapers | B7: 28835.24968 | C7: 31149.01333 | D7: -2313.76365 | E7: -0.07428047963 | G7: 57348.1221 | H7: 59184.43369 | I7: -1836.31159 | J7: -0.03102693522 | L7: 85299.55277 | M7: 88030.34785 | N7: -2730.79508 | O7: -0.03102106429 | Q7: 112783.2099 | R7: 117110.9912 | S7: -4327.78128 | T7: -0.03695452696
A8: Audiovisual | B8: 0 | C8: 0 | D8: 0 | E8: n.a. | G8: 0 | H8: 0 | I8: 0 | J8: n.a. | L8: 0 | M8: 0 | N8: 0 | O8: n.a. | Q8: 0 | R8: 0 | S8: 0 | T8: n.a.
A9: Classified | B9: 0 | C9: 0 | D9: 0 | E9: n.a. | G9: 0 | H9: 0 | I9: 0 | J9: n.a. | L9: 0 | M9: 0 | N9: 0 | O9: n.a. | Q9: 0 | R9: 0 | S9: 0 | T9: n.a.
A10: Gastronomy and Agencies | B10: 0 | C10: 0 | D10: 0 | E10: n.a. | G10: 0 | H10: 0 | I10: 0 | J10: n.a. | L10: 0 | M10: 0 | N10: 0 | O10: n.a. | Q10: 0 | R10: 0 | S10: 0 | T10: n.a.
A11: Corporate and adjustments | B11: 0 | C11: 0 | D11: 0 | E11: 0 | G11: -0.09614 | H11: 0 | I11: -0.09614 | J11: n.a. | L11: -0.41345 | M11: 0 | N11: -0.41345 | O11: 0 | Q11: -1.76238 | R11: 0 | S11: -1.76238 | T11: 0
A12: Total Circulation Revenues | B12: 28835.24968 | C12: 31149.01333 | D12: -2313.76365 | E12: -0.07428047963 | G12: 57348.02596 | H12: 59184.43369 | I12: -1836.40773 | J12: -0.03102855963 | L12: 85299.13932 | M12: 88030.34785 | N12: -2731.20853 | O12: -0.03102576096 | Q12: 112781.4475 | R12: 117110.9912 | S12: -4329.54366 | T12: -0.03696957576
A14: Advertising Revenues
A15: Newpapers | B15: 24625.90333 | C15: 27528.62879 | D15: -2902.725462 | E15: -0.1054438811 | G15: 56489.45447 | H15: 53864.10341 | I15: 2625.351059 | J15: 0.04874027214 | L15: 81876.49823 | M15: 78439.86459 | N15: 3436.633635 | O15: 0.04381233513 | Q15: 122736.1682 | R15: 117500.335 | S15: 5235.833201 | T15: 0.04456015552
A16: Audiovisual | B16: 470.64045 | C16: 757.71474 | D16: -287.07429 | E16: -0.3788685568 | G16: 906.47235 | H16: 1137.98997 | I16: -231.51762 | J16: -0.2034443414 | L16: 1112.61158 | M16: 1616.87235 | N16: -504.26077 | O16: -0.3118741996 | Q16: 1689.39403 | R16: 2417.85056 | S16: -728.45653 | T16: -0.3012826938
A17: Classified | B17: 5606.84045 | C17: 6301.57446 | D17: -694.73401 | E17: -0.1102476872 | G17: 11524.0452 | H17: 10176.77164 | I17: 1347.27356 | J17: 0.132387127 | L17: 17228.34986 | M17: 15603.4886 | N17: 1624.86126 | O17: 0.1041344857 | Q17: 23294.35985 | R17: 21500.80148 | S17: 1793.55837 | T17: 0.08341820986
A18: Gastronomy and Agencies | B18: 0 | C18: 2.45 | D18: -2.45 | E18: -1 | G18: 133.32678 | H18: 2.45 | I18: 130.87678 | J18: n.s. | L18: 175.9005 | M18: 51.50058 | N18: 124.39992 | O18: n.s. | Q18: 380.08817 | R18: 239.61958 | S18: 140.46859 | T18: 0.5862149913
A19: Corporate and adjustments | B19: -22.03005 | C19: -9.55806 | D19: -12.47199 | E19: n.r. | G19: -88.53021 | H19: 11.16136 | I19: -99.69157 | J19: n.r. | L19: -457.6577 | M19: 47.43655 | N19: -505.09425 | O19: n.r. | Q19: -228.3532 | R19: -517.90144 | S19: 289.54824 | T19: n.r.
A20: Total Advertising Revenues | B20: 30681.35418 | C20: 34580.80993 | D20: -3899.455752 | E20: -0.1127635749 | G20: 68964.76859 | H20: 65192.47638 | I20: 3772.292209 | J20: 0.05786391956 | L20: 99935.70247 | M20: 95759.16267 | N20: 4176.539795 | O20: 0.04361504089 | Q20: 147871.657 | R20: 141140.7052 | S20: 6730.951871 | T20: 0.04768965737
A22: Other Revenues
A23: Newpapers | B23: 9530.996225 | C23: 10533.45773 | D23: -1002.461505 | E23: -0.09516927211 | G23: 20434.97571 | H23: 19135.17262 | I23: 1299.80309 | J23: 0.06792742955 | L23: 32101.90078 | M23: 28812.05637 | N23: 3289.84441 | O23: 0.114182909 | Q23: 44502.07641 | R23: 41827.86548 | S23: 2674.210928 | T23: 0.06393371734
A24: Audiovisual | B24: 7006.00368 | C24: 7788.74541 | D24: -782.74173 | E24: -0.1004965099 | G24: 13731.04195 | H24: 14088.50199 | I24: -357.46004 | J24: -0.02537246616 | L24: 20416.00688 | M24: 20804.94593 | N24: -388.93905 | O24: -0.0186945475 | Q24: 27219.06655 | R24: 28771.08781 | S24: -1552.02126 | T24: -0.053943781
A25: Classified | B25: 356.76341 | C25: 351.33073 | D25: 5.43268 | E25: 0.01546315063 | G25: 683.22883 | H25: 630.16903 | I25: 53.0598 | J25: 0.08419931395 | L25: 1041.22266 | M25: 873.87513 | N25: 167.34753 | O25: 0.1915005065 | Q25: 1435.83761 | R25: 1313.9695 | S25: 121.86811 | T25: 0.09274805085
A26: Gastronomy and Agencies | B26: 2920.77082 | C26: 5967.62495 | D26: -3046.85413 | E26: -0.5105639439 | G26: 9436.76603 | H26: 7398.31523 | I26: 2038.4508 | J26: 0.2755290545 | L26: 13730.7136 | M26: 9954.28597 | N26: 3776.42763 | O26: 0.3793770484 | Q26: 22888.43682 | R26: 15171.2936 | S26: 7717.14322 | T26: 0.5086674494
A27: Corporate and adjustments | B27: -939.484255 | C27: -1090.64542 | D27: 151.161165 | E27: 0.004751404624 | G27: -2024.5726 | H27: -1932.78274 | I27: -91.78986 | J27: -0.01546805458 | L27: -3023.204935 | M27: -2739.8228 | N27: -283.382135 | O27: -0.02699187151 | Q27: -4359.14166 | R27: -3998.17199 | S27: -360.96967 | T27: -0.02780500443
A28: Total Other Revenues | B28: 18875.04988 | C28: 23550.5134 | D28: -4675.46352 | E28: -0.1985291548 | G28: 42261.43992 | H28: 39319.37613 | I28: 2942.06379 | J28: 0.07482478309 | L28: 64266.63898 | M28: 57705.3406 | N28: 6561.298385 | O28: 0.113703486 | Q28: 91686.27573 | R28: 83086.0444 | S28: 8600.231328 | T28: 0.1035099383
A30: Total Revenues
A31: Newpapers | B31: 62992.14923 | C31: 69211.09985 | D31: -6218.950617 | E31: -0.08985481564 | G31: 134272.5523 | H31: 132183.7097 | I31: 2088.842559 | J31: 0.01580257176 | L31: 199277.9518 | M31: 195282.2688 | N31: 3995.682965 | O31: 0.02046106382 | Q31: 280021.4545 | R31: 276439.1916 | S31: 3582.262849 | T31: 0.01295859255
A32: Audiovisual | B32: 7476.64413 | C32: 8546.46015 | D32: -1069.81602 | E32: -0.125176506 | G32: 14637.5143 | H32: 15226.49196 | I32: -588.97766 | J32: -0.03868111326 | L32: 21528.61846 | M32: 22421.81828 | N32: -893.19982 | O32: -0.03983619031 | Q32: 28908.46058 | R32: 31188.93837 | S32: -2280.47779 | T32: -0.07311816013
A33: Classified | B33: 5963.60386 | C33: 6652.90519 | D33: -689.30133 | E33: -0.1036090716 | G33: 12207.27403 | H33: 10806.94067 | I33: 1400.33336 | J33: 0.1295772229 | L33: 18269.57252 | M33: 16477.36373 | N33: 1792.20879 | O33: 0.1087679327 | Q33: 24730.19746 | R33: 22814.77098 | S33: 1915.42648 | T33: 0.08395554273
A34: Gastronomy and Agencies | B34: 2920.77082 | C34: 5970.07495 | D34: -3049.30413 | E34: -0.5107647987 | G34: 9570.09281 | H34: 7400.76523 | I34: 2169.32758 | J34: 0.2931220641 | L34: 13906.6141 | M34: 10005.78655 | N34: 3900.82755 | O34: 0.3898571622 | Q34: 23268.52499 | R34: 15410.91318 | S34: 7857.61181 | T34: 0.5098732125
A35: Corporate and adjustments | B35: -961.514305 | C35: -1100.20348 | D35: 138.689175 | E35: 0.1260577498 | G35: -2113.19895 | H35: -1921.62138 | I35: -191.57757 | J35: -0.09969579439 | L35: -3481.276085 | M35: -2692.38625 | N35: -788.889835 | O35: -0.2930076749 | Q35: -4589.25724 | R35: -4516.07343 | S35: -73.18381 | T35: -0.01620518602
A36: Total Revenues | B36: 78391.65374 | C36: 89280.33666 | D36: -10888.68292 | E36: -0.1219605943 | G36: 168574.2345 | H36: 163696.2862 | I36: 4877.948269 | J36: 0.02979877175 | L36: 249501.4808 | M36: 241494.8511 | N36: 8006.62965 | O36: 0.03315445283 | Q36: 352339.3803 | R36: 341337.7407 | S36: 11001.63954 | T36: 0.03223094966
A38: EBITDA
A39: Newpapers | B39: 3142.943861 | C39: -1014.02831 | D39: 4156.972171 | E39: n.r. | G39: 14207.75906 | H39: 4816.06099 | I39: 9391.698071 | J39: n.r. | L39: 19288.82365 | M39: 7671.8888 | N39: 11616.93485 | O39: n.r. | Q39: 39268.32303 | R39: 17538.57462 | S39: 21729.74841 | T39: n.r.
A40: Audiovisual | B40: 2270.02271 | C40: 2339.02801 | D40: -69.0053 | E40: -0.02950169887 | G40: 4483.21736 | H40: 4722.02426 | I40: -238.8069 | J40: -0.05057299303 | L40: 6674.8146 | M40: 6967.92805 | N40: -293.11345 | O40: -0.04206608448 | Q40: 9304.41155 | R40: 7933.84492 | S40: 1370.56663 | T40: 0.1727493597
A41: Classified | B41: 1137.55469 | C41: 1627.0456 | D41: -489.49091 | E41: -0.3008464606 | G41: 2358.0895 | H41: 1927.60874 | I41: 430.48076 | J41: 0.2233237228 | L41: 3666.7387 | M41: 3340.33265 | N41: 326.40605 | O41: 0.09771663011 | Q41: 5056.41201 | R41: 4827.40721 | S41: 229.0048 | T41: 0.04743846749
A42: Gastronomy and Agencies | B42: -643.22277 | C42: 1117.21443 | D42: -1760.4372 | E42: n.r. | G42: 830.10414 | H42: 626.04389 | I42: 204.06025 | J42: 0.3259519872 | L42: 989.15595 | M42: 627.68501 | N42: 361.47094 | O42: 0.5758795164 | Q42: 3024.8622 | R42: 1820.98555 | S42: 1203.87665 | T42: 0.661112687
A43: Corporate and adjustments | B43: -2870.77673 | C43: -3149.06351 | D43: 278.28678 | E43: 0.08837128217 | G43: -5919.77815 | H43: -5517.40564 | I43: -402.37251 | J43: -0.07292784621 | L43: -8936.28346 | M43: -7054.30422 | N43: -1881.97924 | O43: -0.2667845306 | Q43: -11618.36857 | R43: -10397.70329 | S43: -1220.66528 | T43: -0.1173975873
A44: Total EBITDA | B44: 3036.521761 | C44: 920.19622 | D44: 2116.325541 | E44: n.r. | G44: 15959.39191 | H44: 6574.33224 | I44: 9385.059671 | J44: n.r. | L44: 21683.24944 | M44: 11553.53029 | N44: 10129.71915 | O44: 0.8767639759 | Q44: 45035.64022 | R44: 21723.10901 | S44: 23312.53121 | T44: n.r.
A46: EBITDA Margin
A47: Newpapers | B47: 0.04989421538 | C47: -0.0146512382 | D47: 6.454545358 | G47: 0.1058128323 | H47: 0.03643460302 | I47: 6.937822931 | L47: 0.09679356638 | M47: 0.03928615151 | N47: 5.750741487 | Q47: 0.1402332657 | R47: 0.06344460247 | S47: 7.678866323
A48: Audiovisual | B48: 0.3036151876 | C48: 0.2736838374 | D48: 2.993135018 | G48: 0.3062826972 | H48: 0.3101189869 | I48: -0.3836289663 | L48: 0.3100437965 | M48: 0.3107655215 | N48: -0.07217250003 | Q48: 0.3218577317 | R48: 0.2543800891 | S48: 6.747764267
A49: Classified | B49: 0.1907495395 | C49: 0.2445616695 | D49: -5.381212997 | G49: 0.19317085 | H49: 0.1783676619 | I49: 1.480318802 | L49: 0.2007019429 | M49: 0.2027225171 | N49: -0.2020574208 | Q49: 0.2044630666 | R49: 0.211591307 | S49: -0.7128240387
A50: Gastronomy and Agencies | B50: -0.220223636 | C50: 0.1871357461 | D50: -40.73593821 | G50: 0.08673940331 | H50: 0.08459177809 | I50: 0.2147625228 | L50: 0.07112845319 | M50: 0.0627322007 | N50: 0.8396252488 | Q50: 0.129998021 | R50: 0.1181620796 | S50: 1.183594138
A51: Corporate and adjustments | B51: n/s | C51: n/s | D51: n/s | G51: n/s | H51: n/s | I51: n/s | L51: n/s | M51: n/s | N51: n/s | Q51: n/s | R51: n/s | S51: n/s
A52: Total EBITDA Margin | B52: 0.03873526857 | C52: 0.01030681844 | D52: 2.842845013 | G52: 0.09467278295 | H52: 0.04016176782 | I52: 5.451101513 | L52: 0.08690629561 | M52: 0.04784172514 | N52: 3.906457047 | Q52: 0.1278189233 | R52: 0.06364109917 | S52: 6.417782411
A54: EBIT
A55: Newpapers | B55: -848.2103019 | C55: -5130.489 | D55: 4282.278698 | E55: 0.8346726205 | G55: 16708.37888 | H55: -3217.26792 | I55: 19925.6468 | J55: n.r. | L55: 17633.26525 | M55: -4630.89612 | N55: 22264.16137 | O55: n.r. | Q55: 33148.09866 | R55: -5327.97961 | S55: 38476.07827 | T55: n.r.
A56: Audiovisual | B56: 2236.05105 | C56: 2253.13288 | D56: -17.08183 | E56: -0.007581368215 | G56: 4377.47971 | H56: 4555.49975 | I56: -178.02004 | J56: -0.03907804846 | L56: 6491.3067 | M56: 6727.49546 | N56: -236.18876 | O56: -0.03510797761 | Q56: 9067.67218 | R56: 7473.9151 | S56: 1593.75708 | T56: 0.2132425989
A57: Classified | B57: 752.73213 | C57: 1224.34794 | D57: -471.61581 | E57: -0.3851975362 | G57: 1555.42428 | H57: 1120.92728 | I57: 434.497 | J57: 0.387622826 | L57: 2449.54571 | M57: 2106.62452 | N57: 342.92119 | O57: 0.1627823026 | Q57: 3405.48532 | R57: 3141.66663 | S57: 263.81869 | T57: 0.08397411981
A58: Gastronomy and Agencies | B58: -886.34225 | C58: 1094.4902 | D58: -1980.83245 | E58: n.r. | G58: 344.41754 | H58: 159.58783 | I58: 184.82971 | J58: n.r. | L58: 112.69965 | M58: -78.16406 | N58: 190.86371 | O58: n.r. | Q58: 1845.61843 | R58: 873.34442 | S58: 972.27401 | T58: n.r.
A59: Corporate and adjustments | B59: -2995.17369 | C59: -3246.68345 | D59: 251.50976 | E59: 0.07746667141 | G59: -6166.54786 | H59: -5759.24329 | I59: -407.30457 | J59: -0.07072188992 | L59: -9306.60252 | M59: -7445.85375 | N59: -1860.74877 | O59: -0.2499040181 | Q59: -12106.58703 | R59: -12690.41378 | S59: 583.82675 | T59: 0.04600533601
A60: Total EBIT | B60: -1740.943062 | C60: -3805.20143 | D60: 2064.258368 | E60: 0.5424833366 | G60: 16819.15255 | H60: -3140.49635 | I60: 19959.6489 | J60: n.r. | L60: 17380.21479 | M60: -3320.79395 | N60: 20701.00874 | O60: n.r. | Q60: 35360.28756 | R60: -6529.46724 | S60: 41889.7548 | T60: n.r.
A62: EBIT Margin
A63: Newpapers | B63: -0.01346533357 | C63: -0.07412812412 | D63: 6.066279054 | G63: 0.1244362946 | H63: -0.02433936774 | I63: 14.87756624 | L63: 0.08848578128 | M63: -0.02371385865 | N63: 11.21996399 | Q63: 0.1183769962 | R63: -0.01927360436 | S63: 13.76506006
A64: Audiovisual | B64: 0.2990714833 | C64: 0.2636334623 | D64: 3.543802096 | G64: 0.2990589536 | H64: 0.2991824881 | I64: -0.01235345151 | L64: 0.3015198914 | M64: 0.3000423684 | N64: 0.1477523023 | Q64: 0.3136684555 | R64: 0.2396335204 | S64: 7.403493504
A65: Classified | B65: 0.1262210146 | C65: 0.184032074 | D65: -5.781105934 | G65: 0.1274178229 | H65: 0.103722905 | I65: 2.369491791 | L65: 0.1340778886 | M65: 0.1278496096 | N65: 0.6228279056 | Q65: 0.137705545 | R65: 0.137703185 | S65: 0.0002359988678
A66: Gastronomy and Agencies | B66: -0.3034617588 | C66: 0.1833293902 | D66: -48.6791149 | G66: 0.0359889446 | H66: 0.02156369308 | I66: 1.442525152 | L66: 0.008104032311 | M66: -0.007811885613 | N66: 1.591591792 | Q66: 0.07931823916 | R66: 0.05667051717 | S66: 2.264772199
A67: Corporate and adjustments | B67: n/s | C67: n/s | D67: n/s | G67: n/s | H67: n/s | I67: n/s | L67: n/s | M67: n/s | N67: n/s | Q67: n/s | R67: n/s | S67: n/s
A68: Total EBIT Margin | B68: -0.02220827064 | C68: -0.04262082304 | D68: 2.041255241 | G68: 0.09977297301 | H68: -0.01918489676 | I68: 11.89578698 | L68: 0.06965976611 | M68: -0.01375099276 | N68: 8.341075887 | Q68: 0.1003586018 | R68: -0.01912905155 | S68: 11.94876533
A70: Comparable EBITDA
A71: Newpapers | B71: 3150.386171 | C71: 2464.91846 | D71: 685.4677114 | E71: 0.2780894064 | G71: 14207.75906 | H71: 8255.42572 | I71: 5952.333341 | J71: 0.7210207617 | L71: 19288.82365 | M71: 11234.30514 | N71: 8054.518513 | O71: 0.7169574275 | Q71: 39268.32303 | R71: 27409.85383 | S71: 11858.4692 | T71: 0.4326352585
A72: Audiovisual | B72: 2270.08249 | C72: 2339.57653 | D72: -69.49404 | E72: -0.02970368317 | G72: 4483.21736 | H72: 4722.57278 | I72: -239.35542 | J72: -0.05068326761 | L72: 6674.8146 | M72: 6968.67218 | N72: -293.85758 | O72: -0.04216837475 | Q72: 9304.41155 | R72: 8079.85874 | S72: 1224.55281 | T72: 0.1515562152
A73: Classified | B73: 1139.12641 | C73: 1696.21712 | D73: -557.09071 | E73: -0.3284312506 | G73: 2358.0895 | H73: 1992.78182 | I73: 365.30768 | J73: 0.1833154419 | L73: 3666.7387 | M73: 3397.36188 | N73: 269.37682 | O73: 0.07928999898 | Q73: 5056.41201 | R73: 4818.12234 | S73: 238.28967 | T73: 0.04945695713
A74: Gastronomy and Agencies | B74: -639.1331 | C74: 1131.31812 | D74: -1770.45122 | E74: n.r. | G74: 830.10414 | H74: 662.39758 | I74: 167.70656 | J74: 0.2531811182 | L74: 989.15595 | M74: 664.61698 | N74: 324.53897 | O74: 0.4883097781 | Q74: 3024.8622 | R74: 1879.17621 | S74: 1145.68599 | T74: 0.6096745925
A75: Corporate and adjustments | B75: -2870.70236 | C75: -2521.7136 | D75: -348.98876 | E75: -0.1383934956 | G75: -5919.77815 | H75: -4733.34245 | I75: -1186.4357 | J75: -0.2506549468 | L75: -8936.28346 | M75: -6467.49717 | N75: -2468.78629 | O75: -0.3817220518 | Q75: -11618.36857 | R75: -8975.0224 | S75: -2643.34617 | T75: -0.2945225151
A76: Total comparable EBITDA | B76: 3049.759611 | C76: 5110.31663 | D76: -2060.557019 | E76: -0.4032151367 | G76: 15959.39191 | H76: 10899.83545 | I76: 5059.556461 | J76: 0.4641864993 | L76: 21683.24944 | M76: 15797.45901 | N76: 5885.790433 | O76: 0.3725783007 | Q76: 45035.64022 | R76: 33211.98872 | S76: 11823.6515 | T76: 0.3560055255

Sheet Line of Activity 19vs21
A1: LINE OF ACTIVITY
A3: Thousand Euro | B3: IFRS | G3: IFRS | L3: IFRS | Q3: IFRS
B4: 1Q21 | C4: 1Q19 | D4: Var Abs | E4: Var % | G4: 1H21 | H4: 1H19 | I4: Var Abs | J4: Var % | L4: 9M21 | M4: 9M19 | N4: Var Abs | O4: Var % | Q4: 2021 | R4: 2019 | S4: Var Abs | T4: Var %
A6: Circulation Revenues
A7: Newpapers | B7: 28835.24968 | C7: 33540.42228 | D7: =B7-C7 -> -4705.1726 | E7: =D7/C7 -> -0.1402836422 | G7: 57348.1221 | H7: 66761.80705 | I7: =G7-H7 -> -9413.68495 | J7: =I7/H7 -> -0.1410040466 | L7: 85299.55277 | M7: 99917.31247 | N7: -14617.7597 | O7: -0.1462985677 | Q7: 112783.2099 | R7: 128779.1524 | S7: -15995.9425 | T7: -0.1242122052
A8: Audiovisual | B8: 0 | C8: 0 | D8: =B8-C8 -> 0 | E8: n.a. | G8: 0 | H8: 0 | I8: =G8-H8 -> 0 | J8: n.a. | L8: 0 | M8: 0 | N8: 0 | O8: n.a. | Q8: 0 | R8: 0 | S8: 0 | T8: n.a.
A9: Classified | B9: 0 | C9: 0 | D9: 0 | E9: n.a. | G9: 0 | H9: 0 | I9: 0 | J9: n.a. | L9: 0 | M9: 0 | N9: 0 | O9: n.a. | Q9: 0 | R9: 0 | S9: 0 | T9: n.a.
A10: Gastronomy and Agencies | B10: 0 | C10: 0 | D10: 0 | E10: n.a. | G10: 0 | H10: 0 | I10: 0 | J10: n.a. | L10: 0 | M10: 6.73092 | N10: -6.73092 | O10: -1 | Q10: 0 | R10: 6.73092 | S10: -6.73092 | T10: -1
A11: Corporate and adjustments | B11: 0 | C11: 0 | D11: 0 | E11: n.a. | G11: -0.09614 | H11: 0 | I11: -0.09614 | J11: n.a. | L11: -0.41345 | M11: -6.73092 | N11: 6.31747 | O11: -0.9385745188 | Q11: -1.76238 | R11: -6.73092 | S11: 4.96854 | T11: -0.7381665508
A12: Total Circulation Revenues | B12: 28835.24968 | C12: 33540.42228 | D12: -4705.1726 | E12: =D12/C12 -> -0.1402836422 | G12: 57348.02596 | H12: 66761.80705 | I12: -9413.78109 | J12: =I12/H12 -> -0.1410054866 | L12: 85299.13932 | M12: 99917.31247 | N12: -14618.17315 | O12: -0.1463027056 | Q12: 112781.4475 | R12: 128779.1524 | S12: -15997.70488 | T12: -0.1242258905
A14: Advertising Revenues
A15: Newpapers | B15: 24625.90333 | C15: 32677.63217 | D15: -8051.728842 | E15: -0.2463987844 | G15: 56489.45447 | H15: 69563.58771 | I15: =G15-H15 -> -13074.13324 | J15: =I15/H15 -> -0.1879450683 | L15: 81876.49823 | M15: 96093.50169 | N15: -14217.00346 | O15: -0.1479496867 | Q15: 122736.1682 | R15: 138670.1716 | S15: -15934.00343 | T15: -0.1149057742
A16: Audiovisual | B16: 470.64045 | C16: 809.6305 | D16: -338.99005 | E16: -0.4186972329 | G16: 906.47235 | H16: 1560.45219 | I16: -653.97984 | J16: -0.4190963646 | L16: 1112.61158 | M16: 2238.06136 | N16: -1125.44978 | O16: -0.5028681519 | Q16: 1689.39403 | R16: 3427.73324 | S16: -1738.33921 | T16: -0.5071395842
A17: Classified | B17: 5606.84045 | C17: 6385.19171 | D17: -778.35126 | E17: -0.1218994347 | G17: 11524.0452 | H17: 13232.65708 | I17: -1708.61188 | J17: -0.1291208462 | L17: 17228.34986 | M17: 19871.6042 | N17: -2643.25434 | O17: -0.133016656 | Q17: 23294.35985 | R17: 26509.46398 | S17: -3215.10413 | T17: -0.1212813708
A18: Gastronomy and Agencies | B18: 0 | C18: 0 | D18: 0 | E18: n.a. | G18: 133.32678 | H18: 112.12953 | I18: 21.19725 | J18: n.a. | L18: 175.9005 | M18: 281.33253 | N18: -105.43203 | O18: -0.3747594706 | Q18: 380.08817 | R18: 585.76276 | S18: -205.67459 | T18: -0.3511226798
A19: Corporate and adjustments | B19: -22.03005 | C19: -239.33865 | D19: 217.3086 | E19: -0.9079544821 | G19: -88.53021 | H19: -263.23018 | I19: 174.69997 | J19: =I19/H19 -> -0.6636775844 | L19: -457.6577 | M19: -298.03891 | N19: -159.61879 | O19: 0.5355635947 | Q19: -228.3532 | R19: -398.70617 | S19: 170.35297 | T19: -0.4272644439
A20: Total Advertising Revenues | B20: 30681.35418 | C20: 39633.11573 | D20: -8951.761552 | E20: -0.2258657031 | G20: 68964.76859 | H20: 84205.59633 | I20: -15240.82774 | J20: -0.1809954255 | L20: 99935.70247 | M20: 118186.4609 | N20: -18250.7584 | O20: -0.1544234278 | Q20: 147871.657 | R20: 168794.4254 | S20: -20922.76839 | T20: -0.1239541432
A22: Other Revenues
A23: Newpapers | B23: 9530.996225 | C23: 12025.8004 | D23: -2494.804175 | E23: -0.2074543142 | G23: 20434.97571 | H23: 24279.88251 | I23: =G23-H23 -> -3844.9068 | J23: =I23/H23 -> -0.1583577185 | L23: 32101.90078 | M23: 39784.69155 | N23: -7682.79077 | O23: -0.1931092204 | Q23: 44502.07641 | R23: 57492.48359 | S23: -12990.40718 | T23: -0.2259496611
A24: Audiovisual | B24: 7006.00368 | C24: 7443.02643 | D24: -437.02275 | E24: -0.05871573265 | G24: 13731.04195 | H24: 15027.86821 | I24: -1296.82626 | J24: -0.08629475864 | L24: 20416.00688 | M24: 22091.03938 | N24: -1675.0325 | O24: -0.07582406926 | Q24: 27219.06655 | R24: 29522.00667 | S24: -2302.94012 | T24: -0.078007574
A25: Classified | B25: 356.76341 | C25: 328.3923 | D25: 28.37111 | E25: 0.08639395625 | G25: 683.22883 | H25: 691.8122 | I25: -8.58337 | J25: -0.012407081 | L25: 1041.22266 | M25: 1013.48645 | N25: 27.73621 | O25: 0.02736712464 | Q25: 1435.83761 | R25: 1321.81098 | S25: 114.02663 | T25: 0.08626545832
A26: Gastronomy and Agencies | B26: 2920.77082 | C26: 2779.86074 | D26: 140.91008 | E26: 0.05068961836 | G26: 9436.76603 | H26: 4286.39053 | I26: 5150.3755 | J26: 1.201564688 | L26: 13730.7136 | M26: 5896 | N26: 7784.7136 | O26: 1.309235385 | Q26: 22888.43682 | R26: 13100.2268 | S26: 9788.21002 | T26: 0.7471786687
A27: Corporate and adjustments | B27: -939.484255 | C27: -709.9118 | D27: -229.572455 | E27: 0.3233816581 | G27: -2024.5726 | H27: -1730.09885 | I27: -294.47375 | J27: 0.1702063151 | L27: -3023.204935 | M27: -2544.91953 | N27: -478.285405 | O27: 0.1879373392 | Q27: -4359.14166 | R27: -4453.58883 | S27: 94.44717 | T27: -0.02120698017
A28: Total Other Revenues | B28: 18875.04988 | C28: 21943.07675 | D28: -3068.02687 | E28: -0.1398175336 | G28: 42261.43992 | H28: 42872.92784 | I28: -611.48792 | J28: -0.01426279825 | L28: 64266.63898 | M28: 66240.27486 | N28: -1973.635875 | O28: -0.02979510395 | Q28: 91686.27573 | R28: 96982.93921 | S28: -5296.663482 | T28: -0.05461438398
A30: Total Revenues
A31: Newpapers | B31: 62992.14923 | C31: 78243.85485 | D31: -15251.70562 | E31: -0.1949252839 | G31: 134272.5523 | H31: 160605.2773 | I31: =G31-H31 -> -26332.72499 | J31: =I31/H31 -> -0.1639592761 | L31: 199277.9518 | M31: 235795.5057 | N31: -36517.55393 | O31: -0.1548695927 | Q31: 280021.4545 | R31: 324941.8076 | S31: -44920.35311 | T31: -0.1382412237
A32: Audiovisual | B32: 7476.64413 | C32: 8252.65693 | D32: -776.0128 | E32: -0.09403187441 | G32: 14637.5143 | H32: 16588.3204 | I32: -1950.8061 | J32: -0.1176011828 | L32: 21528.61846 | M32: 24329.10074 | N32: -2800.48228 | O32: -0.1151083351 | Q32: 28908.46058 | R32: 32949.73991 | S32: -4041.27933 | T32: -0.1226498097
A33: Classified | B33: 5963.60386 | C33: 6713.58401 | D33: -749.98015 | E33: -0.1117108461 | G33: 12207.27403 | H33: 13924.46928 | I33: -1717.19525 | J33: -0.1233221328 | L33: 18269.57252 | M33: 20885.09065 | N33: -2615.51813 | O33: -0.1252337456 | Q33: 24730.19746 | R33: 27831.27496 | S33: -3101.0775 | T33: -0.1114241983
A34: Gastronomy and Agencies | B34: 2920.77082 | C34: 2780 | D34: 140.77082 | E34: 0.05063698561 | G34: 9570.09281 | H34: 4715.5933 | I34: 4854.49951 | J34: 1.029456783 | L34: 13906.6141 | M34: 6184.04046 | N34: 7722.57364 | O34: 1.24879093 | Q34: 23268.52499 | R34: 13692.72048 | S34: 9575.80451 | T34: 0.699335426
A35: Corporate and adjustments | B35: -961.514305 | C35: -949.25045 | D35: -12.263855 | E35: 0.01291951455 | G35: -2113.19895 | H35: -1993.32903 | I35: -119.86992 | J35: 0.0601355412 | L35: -3481.276085 | M35: -2849.68936 | N35: -631.586725 | O35: 0.2216335345 | Q35: -4589.25724 | R35: -4859.02592 | S35: 269.76868 | T35: -0.05551908643
A36: Total Revenues | B36: 78391.65374 | C36: 95116.61476 | D36: -16724.96102 | E36: -0.1758363779 | G36: 168574.2345 | H36: 193840.3312 | I36: -25266.09675 | J36: -0.1303448905 | L36: 249501.4808 | M36: 284344.0482 | N36: -34842.56743 | O36: -0.1225366511 | Q36: 352339.3803 | R36: 394556.517 | S36: -42217.13675 | T36: -0.1069989594
A38: EBITDA
A39: Newpapers | B39: 3142.943861 | C39: 2329.89911 | D39: 813.0447514 | E39: 0.3489613554 | G39: 14207.75906 | H39: 13006.14345 | I39: =G39-H39 -> 1201.615611 | J39: =I39/H39 -> 0.09238830985 | L39: 19288.82365 | M39: 16821.36776 | N39: 2467.455893 | O39: 0.1466858063 | Q39: 39268.32303 | R39: 35671.36958 | S39: 3596.953447 | T39: 0.1008358661
A40: Audiovisual | B40: 2270.02271 | C40: 2718.77519 | D40: -448.75248 | E40: -0.1650568541 | G40: 4483.21736 | H40: 5251.17793 | I40: -767.96057 | J40: -0.1462453911 | L40: 6674.8146 | M40: 7505.74539 | N40: -830.93079 | O40: -0.1107059655 | Q40: 9304.41155 | R40: 10428.17318 | S40: -1123.76163 | T40: -0.1077620798
A41: Classified | B41: 1137.55469 | C41: 550.80492 | D41: 586.74977 | E41: 1.065258767 | G41: 2358.0895 | H41: 2330.86469 | I41: 27.22481 | J41: 0.01168013318 | L41: 3666.7387 | M41: 4072.77518 | N41: -406.03648 | O41: -0.09969528443 | Q41: 5056.41201 | R41: 5975.64267 | S41: -919.23066 | T41: -0.1538295897
A42: Gastronomy and Agencies | B42: -643.22277 | C42: 615.13701 | D42: -1258.35978 | E42: -2.045657731 | G42: 830.10414 | H42: 528.98832 | I42: 301.11582 | J42: 0.5692296193 | L42: 989.15595 | M42: 600.94961 | N42: 388.20634 | O42: 0.645988172 | Q42: 3024.8622 | R42: 1885.65165 | S42: 1139.21055 | T42: 0.6041468741
A43: Corporate and adjustments | B43: -2870.77673 | C43: -3631.01549 | D43: 760.23876 | E43: -0.2093735932 | G43: -5919.77815 | H43: -6726.46627 | I43: 806.68812 | J43: -0.1199274757 | L43: -8936.28346 | M43: -8566.56711 | N43: -369.71635 | O43: 0.04315805214 | Q43: -11618.36857 | R43: -11656.54955 | S43: 38.18098 | T43: -0.003275495878
A44: Total EBITDA | B44: 3036.521761 | C44: 2583.60074 | D44: 452.9210214 | E44: 0.17530612 | G44: 15959.39191 | H44: 14390.70812 | I44: 1568.683791 | J44: 0.1090067131 | L44: 21683.24944 | M44: 20434.27083 | N44: 1248.978613 | O44: 0.06112176074 | Q44: 45035.64022 | R44: 42304.28753 | S44: 2731.352687 | T44: 0.06456444126
A46: EBITDA Margin
A47: Newpapers | B47: 0.04989421538 | C47: 0.02977740699 | D47: =+(B47-C47)*100 -> 2.01168084 | G47: 0.1058128323 | H47: 0.08098204288 | I47: =+(G47-H47)*100 -> 2.483078946 | L47: 0.09679356638 | M47: 0.07133879719 | N47: 2.545476919 | Q47: 0.1402332657 | R47: 0.1097777163 | S47: 0.03045554936
A48: Audiovisual | B48: 0.3036151876 | C48: 0.3294424103 | D48: =+(B48-C48)*100 -> -2.582722267 | G48: 0.3062826972 | H48: 0.3165587476 | I48: =+(G48-H48)*100 -> -1.027605037 | L48: 0.3100437965 | M48: 0.3085089527 | N48: 0.1534843742 | Q48: 0.3218577317 | R48: 0.3164872684 | S48: 0.005370463285
A49: Classified | B49: 0.1907495395 | C49: 0.0820433496 | D49: 10.87061899 | G49: 0.19317085 | H49: 0.1673934312 | I49: 2.577741878 | L49: 0.2007019429 | M49: 0.1950087384 | N49: 0.5693204414 | Q49: 0.2044630666 | R49: 0.2147096272 | S49: -0.01024656057
A50: Gastronomy and Agencies | B50: -0.220223636 | C50: 0.2154014976 | D50: -43.56251337 | G50: 0.08673940331 | H50: 0.1121785291 | I50: -2.543912574 | L50: 0.07112845319 | M50: 0.09717750294 | N50: -2.604904976 | Q50: 0.129998021 | R50: 0.1377119801 | S50: -0.007713959094
A51: Corporate and adjustments | B51: n/s | C51: n/s | D51: n/s | G51: n/s | H51: n/s | I51: n/s | L51: n/s | M51: n/s | N51: n/s | Q51: n/s | R51: n/s | S51: n/s
A52: Total EBITDA Margin | B52: 0.03873526857 | C52: 0.0271624547 | D52: 1.157281387 | G52: 0.09467278295 | H52: 0.07424000996 | I52: =+(G52-H52)*100 -> 2.043277299 | L52: 0.08690629561 | M52: 0.0718645984 | N52: 1.504169721 | Q52: 0.1278189233 | R52: 0.1072198423 | S52: 0.02059908099
A54: EBIT
A55: Newpapers | B55: -848.2103019 | C55: -1819.32883 | D55: 971.1185281 | E55: -0.5337784528 | G55: 16708.37888 | H55: 4644.07846 | I55: =G55-H55 -> 12064.30042 | J55: =I55/H55 -> 2.597781351 | L55: 17633.26525 | M55: 4319.29448 | N55: 13313.97077 | O55: 3.082441088 | Q55: 33148.09866 | R55: 19285.21602 | S55: 13862.88264 | T55: 0.7188347087
A56: Audiovisual | B56: 2236.05105 | C56: 2596.19779 | D56: -360.14674 | E56: -0.1387208407 | G56: 4377.47971 | H56: 5023.0513 | I56: -645.57159 | J56: -0.1285217991 | L56: 6491.3067 | M56: 7268.97853 | N56: -777.67183 | O56: -0.1069850223 | Q56: 9067.67218 | R56: 10101.41159 | S56: -1033.73941 | T56: -0.102336134
A57: Classified | B57: 752.73213 | C57: 416.39267 | D57: 336.33946 | E57: 0.8077458712 | G57: 1555.42428 | H57: 1572.46928 | I57: -17.045 | J57: -0.01083963942 | L57: 2449.54571 | M57: 2862.56461 | N57: -413.0189 | O57: -0.144282822 | Q57: 3405.48532 | R57: 4396.55732 | S57: -991.072 | T57: -0.2254200111
A58: Gastronomy and Agencies | B58: -886.34225 | C58: 610.20584 | D58: -1496.54809 | E58: -2.452529936 | G58: 344.41754 | H58: 518.42622 | I58: -174.00868 | J58: -0.3356479153 | L58: 112.69965 | M58: 572.70696 | N58: -460.00731 | O58: -0.8032158541 | Q58: 1845.61843 | R58: 1840.75129 | S58: 4.86714 | T58: 0.002644105169
A59: Corporate and adjustments | B59: -2995.17369 | C59: -3809.49655 | D59: 814.32286 | E59: -0.2137612803 | G59: -6166.54786 | H59: -7009.57839 | I59: 843.03053 | J59: -0.1202683647 | L59: -9306.60252 | M59: -8950.27382 | N59: -356.3287 | O59: 0.03981204454 | Q59: -12106.58703 | R59: -12143.65331 | S59: 37.06628 | T59: -0.003052317046
A60: Total EBIT | B60: -1740.943062 | C60: -2006.02908 | D60: 265.0860181 | E60: -0.1321446537 | G60: 16819.15255 | H60: 4748.44687 | I60: 12070.70568 | J60: 2.542032375 | L60: 17380.21479 | M60: 6073.27076 | N60: 11306.94403 | O60: 1.861755301 | Q60: 35360.28756 | R60: 23480.28291 | S60: 11880.00465 | T60: 0.505956623
A62: EBIT Margin
A63: Newpapers | B63: -0.01346533357 | C63: -0.02325203473 | D63: =+(B63-C63)*100 -> 0.9786701152 | G63: 0.1244362946 | H63: 0.02891610126 | I63: =+(G63-H63)*100 -> 9.552019337 | L63: 0.08848578128 | M63: 0.0183179678 | N63: 7.016781348 | Q63: 0.1183769962 | R63: 0.059349753 | S63: 0.05902724322
A64: Audiovisual | B64: 0.2990714833 | C64: 0.3145893271 | D64: =+(B64-C64)*100 -> -1.551784376 | G64: 0.2990589536 | H64: 0.3028065035 | I64: =+(G64-H64)*100 -> -0.3747549935 | L64: 0.3015198914 | M64: 0.298777115 | N64: 0.2742776383 | Q64: 0.3136684555 | R64: 0.3065702982 | S64: 0.00709815726
A65: Classified | B65: 0.1262210146 | C65: 0.06202241148 | D65: 6.419860314 | G65: 0.1274178229 | H65: 0.1129284893 | I65: 1.448933357 | L65: 0.1340778886 | M65: 0.1370625897 | N65: -0.2984701022 | Q65: 0.137705545 | R65: 0.1579718258 | S65: -0.02026628078
A66: Gastronomy and Agencies | B66: -0.3034617588 | C66: 0.2136747581 | D66: -51.71365169 | G66: 0.0359889446 | H66: 0.1099387048 | I66: -7.394976025 | L66: 0.008104032311 | M66: 0.09261048075 | N66: -8.450644844 | Q66: 0.07931823916 | R66: 0.1344328392 | S66: -0.05511460001
A67: Corporate and adjustments | B67: n/s | C67: n/s | D67: n/s | G67: n/s | H67: n/s | I67: n/s | L67: n/s | M67: n/s | N67: n/s | Q67: n/s | R67: n/s | S67: n/s
A68: Total EBIT Margin | B68: -0.02220827064 | C68: -0.02109020685 | D68: -0.1118063789 | G68: 0.09977297301 | H68: 0.02449669189 | I68: =+(G68-H68)*100 -> 7.527628112 | L68: 0.06965976611 | M68: 0.02135888125 | N68: 4.830088486 | Q68: 0.1003586018 | R68: 0.0595105692 | S68: 0.04084803259
A70: Comparable EBITDA
A71: Newpapers | B71: 3150.386171 | C71: 7819.92134 | D71: -4669.535169 | E71: -0.5971332659 | G71: 14207.75906 | H71: 18524.1206 | I71: =G71-H71 -> -4316.361539 | J71: =I71/H71 -> -0.2330130338 | L71: 19288.82365 | M71: 22505.7919 | N71: -3216.968247 | O71: -0.1429395714 | Q71: 39268.32303 | R71: 42127.01953 | S71: -2858.696503 | T71: -0.06785897827
A72: Audiovisual | B72: 2270.08249 | C72: 2718.77519 | D72: =B72-C72 -> -448.6927 | E72: =D72/C72 -> -0.1650348663 | G72: 4483.21736 | H72: 5251.17793 | I72: -767.96057 | J72: -0.1462453911 | L72: 6674.8146 | M72: 7505.80959 | N72: -830.99499 | O72: -0.1107135719 | Q72: 9304.41155 | R72: 10428.23738 | S72: -1123.82583 | T72: -0.1077675727
A73: Classified | B73: 1139.12641 | C73: 1040.92324 | D73: 98.20317 | E73: 0.09434237437 | G73: 2358.0895 | H73: 2852.66353 | I73: -494.57403 | J73: -0.1733727181 | L73: 3666.7387 | M73: 4597.9042 | N73: -931.1655 | O73: -0.2025195523 | Q73: 5056.41201 | R73: 6288.62929 | S73: -1232.21728 | T73: -0.1959436982
A74: Gastronomy and Agencies | B74: -639.1331 | C74: 616.12645 | D74: -1255.25955 | E74: -2.037340793 | G74: 830.10414 | H74: 537.84615 | I74: 292.25799 | J74: 0.5433858549 | L74: 989.15595 | M74: 623.96381 | N74: 365.19214 | O74: 0.5852777583 | Q74: 3024.8622 | R74: 1931.99268 | S74: 1092.86952 | T74: 0.5656695966
A75: Corporate and adjustments | B75: -2870.70236 | C75: -3065.07123 | D75: 194.36887 | E75: -0.06341414454 | G75: -5919.77815 | H75: -6137.19827 | I75: 217.42012 | J75: -0.03542660844 | L75: -8936.28346 | M75: -7970.01043 | N75: -966.27303 | O75: 0.1212386155 | Q75: -11618.36857 | R75: -11156.0351 | S75: -462.33347 | T75: 0.04144245387
A76: Total comparable EBITDA | B76: 3049.759611 | C76: 9130.67499 | D76: -6080.915379 | E76: -0.6659874966 | G76: 15959.39191 | H76: 21028.60994 | I76: -5069.218029 | J76: -0.2410629159 | L76: 21683.24944 | M76: 27263.45906 | N76: -5580.209617 | O76: -0.2046772424 | Q76: 45035.64022 | R76: 49619.84378 | S76: -4584.203563 | T76: -0.09238649729

Sheet Newspapers
A1: NEWSPAPERS
A3: Thousand Euro | B3: IFRS | G3: IFRS | L3: IFRS | Q3: IFRS
B4: 1Q21 | C4: 1Q20 | D4: Var Abs | E4: Var % | G4: 1H21 | H4: 1H20 | I4: Var Abs | J4: Var % | L4: 9M21 | M4: 9M20 | N4: Var Abs | O4: Var % | Q4: 2021 | R4: 2020 | S4: Var Abs | T4: Var %
A6: Circulation Revenues
A7: Regionals | B7: 21111.75736 | C7: 22420.92401 | D7: -1309.16665 | E7: -0.05839039682 | G7: 41777.70366 | H7: 42861.33225 | I7: -1083.62859 | J7: -0.0252821957 | L7: 62068.12823 | M7: 63630.71257 | N7: -1562.58434 | O7: -0.0245570775 | Q7: 82099.49461 | R7: 84727.99608 | S7: -2628.50147 | T7: -0.03102282116
A8: ABC | B8: 6873.21197 | C8: 7773.71764 | D8: -900.50567 | E8: -0.1158397708 | G8: 13901.07394 | H8: 14544.49614 | I8: -643.4222 | J8: -0.04423819112 | L8: 20762.10428 | M8: 21711.00963 | N8: -948.90535 | O8: -0.04370618254 | Q8: 27437.10301 | R8: 28842.2473 | S8: -1405.14429 | T8: -0.04871826649
A9: Supplements & Magazines | B9: 2377.41876 | C9: 2952.63601 | D9: -575.21725 | E9: -0.194814819 | G9: 4710.95923 | H9: 5611.04649 | I9: -900.08726 | J9: -0.1604134383 | L9: 7018.83118 | M9: 8402.08369 | N9: -1383.25251 | O9: -0.1646320795 | Q9: 9218.88092 | R9: 11073.96106 | S9: -1855.08014 | T9: -0.1675173075
A10: Adjustments intersegment | B10: -1527.13841 | C10: -1998.26433 | D10: 471.12592 | E10: 0.2357675673 | G10: -3041.61473 | H10: -3832.44119 | I10: 790.82646 | J10: 0.2063505794 | L10: -4549.51092 | M10: -5713.45804 | N10: 1163.94712 | O10: 0.2037202535 | Q10: -5972.26865 | R10: -7533.21327 | S10: 1560.94462 | T10: 0.2072083405
A11: Total Circulation Revenues | B11: 28835.24968 | C11: 31149.01333 | D11: -2313.76365 | E11: -0.07428047963 | G11: 57348.1221 | H11: 59184.43369 | I11: -1836.31159 | J11: -0.03102693522 | L11: 85299.55277 | M11: 88030.34785 | N11: -2730.79508 | O11: -0.03102106429 | Q11: 112783.2099 | R11: 117110.9912 | S11: -4327.78128 | T11: -0.03695452696
A13: Advertising Revenues
A14: Regionals | B14: 16876.30315 | C14: 18570.27173 | D14: -1693.968582 | E14: -0.09121937507 | G14: 38346.55668 | H14: 36742.11439 | I14: 1604.442289 | J14: 0.04366766354 | L14: 55891.79587 | M14: 53613.69704 | N14: 2278.098825 | O14: 0.04249098553 | Q14: 82711.66988 | R14: 79751.26091 | S14: 2960.408971 | T14: 0.03712052872
A15: ABC | B15: 6505.03913 | C15: 7476.22694 | D15: -971.18781 | E15: -0.1299034684 | G15: 15378.88328 | H15: 14670.40342 | I15: 708.47986 | J15: 0.04829314094 | L15: 22248.35635 | M15: 21246.49373 | N15: 1001.86262 | O15: 0.04715425673 | Q15: 33847.21485 | R15: 32065.44008 | S15: 1781.77477 | T15: 0.05556682726
A16: Supplements & Magazines | B16: 1244.02348 | C16: 1482.13012 | D16: -238.10664 | E16: -0.1606516437 | G16: 2765.04021 | H16: 2453.1756 | I16: 311.86461 | J16: 0.1271269003 | L16: 3736.72709 | M16: 3582.85382 | N16: 153.87327 | O16: 0.04294712476 | Q16: 6185.58766 | R16: 5671.26336 | S16: 514.3243 | T16: 0.09068954611
A17: Adjustments intersegment | B17: 0.53757 | C17: 0 | D17: 0.53757 | E17: n.a. | G17: -1.0257 | H17: -1.59 | I17: 0.5643 | J17: 0.3549056604 | L17: -0.38108 | M17: -3.18 | N17: 2.79892 | O17: 0.880163522 | Q17: -8.3042 | R17: 12.37064 | S17: -20.67484 | T17: n.r.
A18: Total Advertising Revenues | B18: 24625.90333 | C18: 27528.62879 | D18: -2902.725462 | E18: -0.1054438811 | G18: 56489.45447 | H18: 53864.10341 | I18: 2625.351059 | J18: 0.04874027214 | L18: 81876.49823 | M18: 78439.86459 | N18: 3436.633635 | O18: 0.04381233513 | Q18: 122736.1682 | R18: 117500.335 | S18: 5235.833201 | T18: 0.04456015552
A20: Other Revenues
A21: Regionals | B21: 7071.33848 | C21: 7403.10004 | D21: -331.76156 | E21: -0.04481386962 | G21: 14953.99359 | H21: 13769.42933 | I21: 1184.564255 | J21: 0.08602856564 | L21: 23655.64281 | M21: 20958.42383 | N21: 2697.21898 | O21: 0.1286937893 | Q21: 32047.66772 | R21: 29383.10446 | S21: 2664.563258 | T21: 0.09068351719
A22: ABC | B22: 4022.42866 | C22: 4204.57535 | D22: -182.14669 | E22: -0.04332106689 | G22: 8052.36304 | H22: 7098.75597 | I22: 953.60707 | J22: 0.1343343924 | L22: 12129.7695 | M22: 10339.80272 | N22: 1789.96678 | O22: 0.1731142101 | Q22: 18129.70589 | R22: 16043.76914 | S22: 2085.93675 | T22: 0.1300153805
A23: Supplements & Magazines | B23: 16.77333 | C23: 264.4634 | D23: -247.69007 | E23: -0.9365759875 | G23: 619.32859 | H23: 406.81275 | I23: 212.51584 | J23: 0.52239228 | L23: 947.02715 | M23: 439.3511 | N23: 507.67605 | O23: n.r. | Q23: 1269.05562 | R23: 977.3671 | S23: 291.68852 | T23: 0.2984431541
A24: Adjustments intersegment | B24: -1579.544245 | C24: -1338.68106 | D24: -240.863185 | E24: -0.1799257435 | G24: -3190.709505 | H24: -2139.82543 | I24: -1050.884075 | J24: -0.4911073867 | L24: -4630.53868 | M24: -2925.52128 | N24: -1705.0174 | O24: -0.5828080663 | Q24: -6944.35282 | R24: -4576.37522 | S24: -2367.9776 | T24: -0.517435194
A25: Total Other Revenues | B25: 9530.996225 | C25: 10533.45773 | D25: -1002.461505 | E25: -0.09516927211 | G25: 20434.97571 | H25: 19135.17262 | I25: 1299.80309 | J25: 0.06792742955 | L25: 32101.90078 | M25: 28812.05637 | N25: 3289.84441 | O25: 0.114182909 | Q25: 44502.07641 | R25: 41827.86548 | S25: 2674.210928 | T25: 0.06393371734
A27: Total Revenues
A28: Regionals | B28: 45059.39899 | C28: 48394.29578 | D28: -3334.896792 | E28: -0.06891094784 | G28: 95078.25392 | H28: 93372.87597 | I28: 1705.377954 | J28: 0.01826416865 | L28: 141615.5669 | M28: 138202.8334 | N28: 3412.733465 | O28: 0.02469365772 | Q28: 196858.8322 | R28: 193862.3615 | S28: 2996.470759 | T28: 0.01545669173
A29: ABC | B29: 17400.67976 | C29: 19454.51993 | D29: -2053.84017 | E29: -0.1055713622 | G29: 37332.32026 | H29: 36313.65553 | I29: 1018.66473 | J29: 0.02805183656 | L29: 55140.23013 | M29: 53297.30608 | N29: 1842.92405 | O29: 0.03457818388 | Q29: 79414.02375 | R29: 76951.45652 | S29: 2462.56723 | T29: 0.0320015675
A30: Supplements & Magazines | B30: 3638.21557 | C30: 4699.22953 | D30: -1061.01396 | E30: -0.2257846639 | G30: 8095.32803 | H30: 8471.03484 | I30: -375.70681 | J30: -0.04435193776 | L30: 11702.58542 | M30: 12424.28861 | N30: -721.70319 | O30: -0.0580880896 | Q30: 16673.5242 | R30: 17722.59152 | S30: -1049.06732 | T30: -0.0591937877
A31: Adjustments intersegment | B31: -3106.145085 | C31: -3336.94539 | D31: 230.800305 | E31: 0.06916514298 | G31: -6233.349935 | H31: -5973.85662 | I31: -259.493315 | J31: -0.04343815587 | L31: -9180.43068 | M31: -8642.15932 | N31: -538.27136 | O31: -0.06228435974 | Q31: -12924.92567 | R31: -12097.21785 | S31: -827.70782 | T31: -0.06842133706
A32: Total Revenues | B32: 62992.14923 | C32: 69211.09985 | D32: -6218.950617 | E32: -0.08985481564 | G32: 134272.5523 | H32: 132183.7097 | I32: 2088.842559 | J32: 0.01580257176 | L32: 199277.9518 | M32: 195282.2688 | N32: 3995.682965 | O32: 0.02046106382 | Q32: 280021.4545 | R32: 276439.1916 | S32: 3582.262849 | T32: 0.01295859255
A34: EBITDA
A35: Regionals | B35: 4157.050011 | C35: 180.76416 | D35: 3976.285851 | E35: n.r. | G35: 12542.13768 | H35: 5814.89052 | I35: 6727.247161 | J35: n.r. | L35: 16992.61646 | M35: 9104.64459 | N35: 7887.971873 | O35: 0.8663679065 | Q35: 28734.55837 | R35: 13646.88113 | S35: 15087.67724 | T35: n.r.
A36: ABC | B36: -1042.30405 | C36: -497.32807 | D36: -544.97598 | E36: n.r. | G36: 1001.07852 | H36: -740.96881 | I36: 1742.04733 | J36: n.r. | L36: 1502.09909 | M36: -1461.15646 | N36: 2963.25555 | O36: n.r. | Q36: 8637.16601 | R36: 3080.0075 | S36: 5557.15851 | T36: n.r.
A37: Supplements & Magazines | B37: 28.1979 | C37: -697.4644 | D37: 725.6623 | E37: n.r. | G37: 664.54286 | H37: -257.86073 | I37: 922.40359 | J37: n.r. | L37: 794.1081 | M37: 28.40067 | N37: 765.70743 | O37: n.r. | Q37: 1896.59865 | R37: 811.68599 | S37: 1084.91266 | T37: n.r.
A38: Total EBITDA | B38: 3142.943861 | C38: -1014.02831 | D38: 4156.972171 | E38: n.r. | G38: 14207.75906 | H38: 4816.06099 | I38: 9391.698071 | J38: n.r. | L38: 19288.82365 | M38: 7671.8888 | N38: 11616.93485 | O38: n.r. | Q38: 39268.32303 | R38: 17538.57462 | S38: 21729.74841 | T38: n.r.
A40: EBITDA Margin
A41: Regionals | B41: 0.09225711183 | C41: 0.003735236913 | D41: 8.852187492 | G41: 0.1319138411 | H41: 0.06227601388 | I41: 6.963782723 | L41: 0.1199911622 | M41: 0.0658788562 | N41: 5.411230603 | Q41: 0.1459652993 | R41: 0.07039469151 | S41: 7.557060781
A42: ABC | B42: -0.05990019151 | C42: -0.02556362592 | D42: -3.433656559 | G42: 0.02681533087 | H42: -0.02040468797 | I42: 4.722001884 | L42: 0.02724143672 | M42: -0.0274152029 | N42: 5.465663962 | Q42: 0.1087612188 | R42: 0.04002533076 | S42: 6.8735888
A43: Supplements & Magazines | B43: 0.007750475324 | C43: -0.1484210115 | D43: 15.61714868 | G43: 0.08208967661 | H43: -0.0304402868 | I43: 11.25299634 | L43: 0.0678574923 | M43: 0.002285899088 | N43: 6.557159321 | Q43: 0.1137491167 | R43: 0.04579950901 | S43: 6.794960769
A44: Total EBITDA Margin | B44: 0.04989421538 | C44: -0.0146512382 | D44: 6.454545358 | G44: 0.1058128323 | H44: 0.03643460302 | I44: 6.937822931 | L44: 0.09679356638 | M44: 0.03928615151 | N44: 5.750741487 | Q44: 0.1402332657 | R44: 0.06344460247 | S44: 7.678866323
A46: EBIT
A47: Regionals | B47: 2110.724948 | C47: -1901.10645 | D47: 4011.831398 | E47: n.r. | G47: 18985.65689 | H47: 1714.35392 | I47: 17271.30297 | J47: n.r. | L47: 21428.58481 | M47: 2945.33233 | N47: 18483.25248 | O47: n.r. | Q47: 30912.08744 | R47: -1198.37526 | S47: 32110.4627 | T47: n.r.
A48: ABC | B48: -2882.16016 | C48: -2369.6515 | D48: -512.50866 | E48: -0.216280183 | G48: -2724.69531 | H48: -4381.77981 | I48: 1657.0845 | J48: 0.3781761229 | L48: -4249.11049 | M48: -7198.95071 | N48: 2949.84022 | O48: 0.4097597468 | Q48: 811.54614 | R48: -4420.97033 | S48: 5232.51647 | T48: n.r.
A49: Supplements & Magazines | B49: -76.77509 | C49: -859.73105 | D49: 782.95596 | E49: 0.9106987121 | G49: 447.4173 | H49: -549.84204 | I49: 997.25934 | J49: n.r. | L49: 453.79093 | M49: -377.27774 | N49: 831.06867 | O49: n.r. | Q49: 1424.46508 | R49: 291.36598 | S49: 1133.0991 | T49: n.r.
A50: Total EBIT | B50: -848.2103019 | C50: -5130.489 | D50: 4282.278698 | E50: 0.8346726205 | G50: 16708.37888 | H50: -3217.26792 | I50: 19925.6468 | J50: n.r. | L50: 17633.26525 | M50: -4630.89612 | N50: 22264.16137 | O50: n.r. | Q50: 33148.09866 | R50: -5327.97961 | S50: 38476.07827 | T50: n.r.
A52: EBIT Margin
A53: Regionals | B53: 0.04684316692 | C53: -0.03928368869 | D53: 8.612685561 | G53: 0.1996845346 | H53: 0.01836029899 | I53: 18.13242356 | L53: 0.1513151787 | M53: 0.02131166385 | N53: 13.00035149 | Q53: 0.1570266728 | R53: -0.006181577749 | S53: 16.32082506
A54: ABC | B54: -0.1656349177 | C54: -0.1218046762 | D54: -4.383024154 | G54: -0.0729848906 | H54: -0.1206647953 | I54: 4.767990467 | L54: -0.077060079 | M54: -0.1350715681 | N54: 5.801148914 | Q54: 0.0102191792 | R54: -0.05745141846 | S54: 6.767059767
A55: Supplements & Magazines | B55: -0.02110240268 | C55: -0.1829514912 | D55: 16.18490885 | G55: 0.05526858187 | H55: -0.06490848525 | I55: 12.01770671 | L55: 0.03877698079 | M55: -0.03036614424 | N55: 6.914312503 | Q55: 0.08543275332 | R55: 0.01644037102 | S55: 6.89923823
A56: Total EBIT Margin | B56: -0.01346533357 | C56: -0.07412812412 | D56: 6.066279054 | G56: 0.1244362946 | H56: -0.02433936774 | I56: 14.87756624 | L56: 0.08848578128 | M56: -0.02371385865 | N56: 11.21996399 | Q56: 0.1183769962 | R56: -0.01927360436 | S56: 13.76506006
A58: Comparable EBITDA
A59: Regionals | B59: 4161.476961 | C59: 3243.30311 | D59: 918.1738514 | E59: 0.2830983785 | G59: 12542.13768 | H59: 9109.59971 | I59: 3432.537971 | J59: 0.3768044788 | L59: 16992.61646 | M59: 12311.79319 | N59: 4680.823273 | O59: 0.3801902128 | Q59: 28734.55837 | R59: 22747.40539 | S59: 5987.152977 | T59: 0.2632015773
A60: ABC | B60: -1042.28221 | C60: -497.23257 | D60: -545.04964 | E60: n.r. | G60: 1001.07852 | H60: -740.87331 | I60: 1741.95183 | J60: n.r. | L60: 1502.09909 | M60: -1250.44876 | N60: 2752.54785 | O60: n.r. | Q60: 8637.16601 | R60: 3436.18984 | S60: 5200.97617 | T60: n.r.
A61: Supplements& Magazines | B61: 31.19142 | C61: -281.15208 | D61: 312.3435 | E61: n.r. | G61: 664.54286 | H61: -113.30069 | I61: 777.84355 | J61: n.r. | L61: 794.1081 | M61: 172.96071 | N61: 621.14739 | O61: n.r. | Q61: 1896.59865 | R61: 1226.2586 | S61: 670.34005 | T61: 0.5466547187
A62: Total comparable EBITDA | B62: 3150.386171 | C62: 2464.91846 | D62: 685.4677114 | E62: 0.2780894064 | G62: 14207.75906 | H62: 8255.42572 | I62: 5952.333341 | J62: 0.7210207617 | L62: 19288.82365 | M62: 11234.30514 | N62: 8054.518513 | O62: 0.7169574275 | Q62: 39268.32303 | R62: 27409.85383 | S62: 11858.4692 | T62: 0.4326352585

Sheet Newspapers 19vs21
A1: NEWSPAPERS
A3: Thousand Euro | B3: IFRS | G3: IFRS | L3: IFRS | Q3: IFRS
B4: 1Q21 | C4: 1Q19 | D4: Var Abs | E4: Var % | G4: 1H21 | H4: 1H19 | I4: Var Abs | J4: Var % | L4: 9M21 | M4: 9M19 | N4: Var Abs | O4: Var % | Q4: 2021 | R4: 2019 | S4: Var Abs | T4: Var %
A6: Circulation Revenues
A7: Regionals | B7: 21111.75736 | C7: 23304.54472 | D7: =B7-C7 -> -2192.78736 | E7: =D7/C7 -> -0.09409269249 | G7: 41777.70366 | H7: 46244.81774 | I7: =G7-H7 -> -4467.11408 | J7: =I7/H7 -> -0.09659707397 | L7: 62068.12823 | M7: 69395.03385 | N7: -7326.90562 | O7: -0.1055825642 | Q7: 82099.49461 | R7: 92150.37407 | S7: -10050.87946 | T7: -0.1090704141
A8: ABC | B8: 6873.21197 | C8: 9216.9524 | D8: =B8-C8 -> -2343.74043 | E8: =D8/C8 -> -0.2542858342 | G8: 13901.07394 | H8: 18504.70069 | I8: =G8-H8 -> -4603.62675 | J8: =I8/H8 -> -0.248781476 | L8: 20762.10428 | M8: 27503.57509 | N8: -6741.47081 | O8: -0.2451125277 | Q8: 27437.10301 | R8: 32640.67567 | S8: -5203.57266 | T8: -0.1594198819
A9: Supplements & Magazines | B9: 2377.41876 | C9: 3074.33836 | D9: -696.9196 | E9: -0.2266892965 | G9: 4710.95923 | H9: 6096.64768 | I9: -1385.68845 | J9: -0.2272869489 | L9: 7018.83118 | M9: 9173.52382 | N9: -2154.69264 | O9: -0.2348816749 | Q9: 9218.88092 | R9: 12114.6658 | S9: -2895.78488 | T9: -0.2390313466
A10: Adjustments intersegment | B10: -1527.13841 | C10: -2055.4132 | D10: 528.27479 | E10: -0.2570163459 | G10: -3041.61473 | H10: -4084.35906 | I10: 1042.74433 | J10: -0.255301827 | L10: -4549.51092 | M10: -6154.82029 | N10: 1605.30937 | O10: -0.2608214853 | Q10: -5972.26865 | R10: -8126.56315 | S10: 2154.2945 | T10: -0.2650929378
A11: Total Circulation Revenues | B11: 28835.24968 | C11: 33540.42228 | D11: -4705.1726 | E11: -0.1402836422 | G11: 57348.1221 | H11: 66761.80705 | I11: -9413.68495 | J11: -0.1410040466 | L11: 85299.55277 | M11: 99917.31247 | N11: -14617.7597 | O11: -0.1462985677 | Q11: 112783.2099 | R11: 128779.1524 | S11: -15995.9425 | T11: -0.1242122052
A13: Advertising Revenues
A14: Regionals | B14: 16876.30315 | C14: 22675.5899 | D14: -5799.286752 | E14: -0.2557502044 | G14: 38346.55668 | H14: 48116.92736 | I14: =G14-H14 -> -9770.370681 | J14: =I14/H14 -> -0.2030547505 | L14: 55891.79587 | M14: 66476.68686 | N14: -10584.89099 | O14: -0.159227114 | Q14: 82711.66988 | R14: 94933.4563 | S14: -12221.78642 | T14: -0.128740561
A15: ABC | B15: 6505.03913 | C15: 8291.94238 | D15: -1786.90325 | E15: -0.2154987539 | G15: 15378.88328 | H15: 17372.69056 | I15: -1993.80728 | J15: -0.1147667526 | L15: 22248.35635 | M15: 24052.18359 | N15: -1803.82724 | O15: -0.07499640244 | Q15: 33847.21485 | R15: 35529.5113 | S15: -1682.29645 | T15: -0.04734927075
A16: Supplements & Magazines | B16: 1244.02348 | C16: 1734.02792 | D16: -490.00444 | E16: -0.2825816322 | G16: 2765.04021 | H16: 4098.39782 | I16: -1333.35761 | J16: -0.3253363067 | L16: 3736.72709 | M16: 5589.05927 | N16: -1852.33218 | O16: -0.3314211016 | Q16: 6185.58766 | R16: 8252.91936 | S16: -2067.3317 | T16: -0.2504970193
A17: Adjustments intersegment | B17: 0.53757 | C17: -23.92803 | D17: 24.4656 | E17: -1.02246612 | G17: -1.0257 | H17: -24.42803 | I17: 23.40233 | J17: -0.9580113501 | L17: -0.38108 | M17: -24.42803 | N17: 24.04695 | O17: -0.9843998882 | Q17: -8.3042 | R17: -45.71534 | S17: 37.41114 | T17: -0.8183498143
A18: Total Advertising Revenues | B18: 24625.90333 | C18: 32677.63217 | D18: -8051.728842 | E18: -0.2463987844 | G18: 56489.45447 | H18: 69563.58771 | I18: -13074.13324 | J18: -0.1879450683 | L18: 81876.49823 | M18: 96093.50169 | N18: -14217.00346 | O18: -0.1479496867 | Q18: 122736.1682 | R18: 138670.1716 | S18: -15934.00343 | T18: -0.1149057742
A20: Other Revenues
A21: Regionals | B21: 7071.33848 | C21: 8263.41859 | D21: -1192.08011 | E21: -0.1442599206 | G21: 14953.99359 | H21: 16826.89621 | I21: =G21-H21 -> -1872.902625 | J21: =I21/H21 -> -0.1113041051 | L21: 23655.64281 | M21: 28449.75953 | N21: -4794.11672 | O21: -0.1685116781 | Q21: 32047.66772 | R21: 39029.9792 | S21: -6982.311482 | T21: -0.1788961108
A22: ABC | B22: 4022.42866 | C22: 4496.32601 | D22: -473.89735 | E22: -0.1053965724 | G22: 8052.36304 | H22: 9688.83719 | I22: -1636.47415 | J22: -0.1689030498 | L22: 12129.7695 | M22: 14959.93538 | N22: -2830.16588 | O22: -0.1891830284 | Q22: 18129.70589 | R22: 22584.32539 | S22: -4454.6195 | T22: -0.1972438593
A23: Supplements & Magazines | B23: 16.77333 | C23: 824.77656 | D23: -808.00323 | E23: -0.979663183 | G23: 619.32859 | H23: 1417.168 | I23: -797.83941 | J23: -0.5629815308 | L23: 947.02715 | M23: 1607.35159 | N23: -660.32444 | O23: -0.4108151845 | Q23: 1269.05562 | R23: 2185.56664 | S23: -916.51102 | T23: -0.4193470944
A24: Adjustments intersegment | B24: -1579.544245 | C24: -1558.72076 | D24: -20.823485 | E24: 0.01335934282 | G24: -3190.709505 | H24: -3653.01889 | I24: 462.309385 | J24: -0.1265554323 | L24: -4630.53868 | M24: -5232.35495 | N24: 601.81627 | O24: -0.1150182424 | Q24: -6944.35282 | R24: -6307.38764 | S24: -636.96518 | T24: 0.1009871624
A25: Total Other Revenues | B25: 9530.996225 | C25: 12025.8004 | D25: -2494.804175 | E25: -0.2074543142 | G25: 20434.97571 | H25: 24279.88251 | I25: -3844.9068 | J25: -0.1583577185 | L25: 32101.90078 | M25: 39784.69155 | N25: -7682.79077 | O25: -0.1931092204 | Q25: 44502.07641 | R25: 57492.48359 | S25: -12990.40718 | T25: -0.2259496611
A27: Total Revenues
A28: Regionals | B28: 45059.39899 | C28: 54243.55321 | D28: -9184.154222 | E28: -0.1693132857 | G28: 95078.25392 | H28: 111188.6413 | I28: =G28-H28 -> -16110.38739 | J28: =I28/H28 -> -0.1448923847 | L28: 141615.5669 | M28: 164321.4802 | N28: -22705.91333 | O28: -0.1381798247 | Q28: 196858.8322 | R28: 226113.8096 | S28: -29254.97736 | T28: -0.1293816482
A29: ABC | B29: 17400.67976 | C29: 22005.22079 | D29: -4604.54103 | E29: -0.2092476633 | G29: 37332.32026 | H29: 45566.22844 | I29: -8233.90818 | J29: -0.1807019905 | L29: 55140.23013 | M29: 66515.69406 | N29: -11375.46393 | O29: -0.1710192473 | Q29: 79414.02375 | R29: 90754.51236 | S29: -11340.48861 | T29: -0.1249578485
A30: Supplements & Magazines | B30: 3638.21557 | C30: 5633.14284 | D30: -1994.92727 | E30: -0.3541410766 | G30: 8095.32803 | H30: 11612.2135 | I30: -3516.88547 | J30: -0.3028609033 | L30: 11702.58542 | M30: 16369.93468 | N30: -4667.34926 | O30: -0.2851171585 | Q30: 16673.5242 | R30: 22553.1518 | S30: -5879.6276 | T30: -0.2607009278
A31: Adjustments intersegment | B31: -3106.145085 | C31: -3638.06199 | D31: 531.916905 | E31: -0.1462088624 | G31: -6233.349935 | H31: -7761.80598 | I31: 1528.456045 | J31: -0.1969201561 | L31: -9180.43068 | M31: -11411.60327 | N31: 2231.17259 | O31: -0.1955178897 | Q31: -12924.92567 | R31: -14479.66613 | S31: 1554.74046 | T31: -0.1073740545
A32: Total Revenues | B32: 62992.14923 | C32: 78243.85485 | D32: -15251.70562 | E32: -0.1949252839 | G32: 134272.5523 | H32: 160605.2773 | I32: -26332.72499 | J32: -0.1639592761 | L32: 199277.9518 | M32: 235795.5057 | N32: -36517.55393 | O32: -0.1548695927 | Q32: 280021.4545 | R32: 324941.8076 | S32: -44920.35311 | T32: -0.1382412237
A34: EBITDA
A35: Regionals | B35: 4157.050011 | C35: 3192.28671 | D35: 964.7633014 | E35: 0.3022169965 | G35: 12542.13768 | H35: 11560.40382 | I35: =G35-H35 -> 981.733861 | J35: =I35/H35 -> 0.08492210794 | L35: 16992.61646 | M35: 15360.49593 | N35: 1632.120533 | O35: 0.1062544165 | Q35: 28734.55837 | R35: 27290.78276 | S35: 1443.775607 | T35: 0.05290341505
A36: ABC | B36: -1042.30405 | C36: -688.44832 | D36: -353.85573 | E36: 0.5139902586 | G36: 1001.07852 | H36: 1752.49848 | I36: -751.41996 | J36: -0.4287706772 | L36: 1502.09909 | M36: 2322.54562 | N36: -820.44653 | O36: -0.3532531387 | Q36: 8637.16601 | R36: 9176.57658 | S36: -539.41057 | T36: -0.05878124214
A37: Supplements & Magazines | B37: 28.1979 | C37: -173.93928 | D37: 202.13718 | E37: -1.162113469 | G37: 664.54286 | H37: -306.75885 | I37: 971.30171 | J37: -3.166336391 | L37: 794.1081 | M37: -861.67378 | N37: 1655.78188 | O37: -1.921587866 | Q37: 1896.59865 | R37: -795.98975 | S37: 2692.5884 | T37: -3.382692302
A38: Total EBITDA | B38: 3142.943861 | C38: 2329.89911 | D38: 813.0447514 | E38: 0.3489613554 | G38: 14207.75906 | H38: 13006.14345 | I38: 1201.615611 | J38: 0.09238830985 | L38: 19288.82365 | M38: 16821.36776 | N38: 2467.455893 | O38: 0.1466858063 | Q38: 39268.32303 | R38: 35671.36958 | S38: 3596.953447 | T38: 0.1008358661
A40: EBITDA Margin
A41: Regionals | B41: 0.09225711183 | C41: 0.0588509882 | D41: =+(B41-C41)*100 -> 3.340612363 | G41: 0.1319138411 | H41: 0.1039710863 | I41: =+(G41-H41)*100 -> 2.794275482 | L41: 0.1199911622 | M41: 0.0934783201 | N41: 2.651284212 | Q41: 0.1459652993 | R41: 0.1206948961 | S41: 0.02527040319
A42: ABC | B42: -0.05990019151 | C42: -0.03128568109 | D42: =+(B42-C42)*100 -> -2.861451042 | G42: 0.02681533087 | H42: 0.0384604682 | I42: =+(G42-H42)*100 -> -1.164513733 | L42: 0.02724143672 | M42: 0.03491725754 | N42: -0.7675820817 | Q42: 0.1087612188 | R42: 0.1011142735 | S42: 0.007646945309
A43: Supplements & Magazines | B43: 0.007750475324 | C43: -0.03087783941 | D43: 3.862831474 | G43: 0.08208967661 | H43: -0.0264169144 | I43: 10.8506591 | L43: 0.0678574923 | M43: -0.05263758206 | N43: 12.04950744 | Q43: 0.1137491167 | R43: -0.03529394725 | S43: 0.149043064
A44: Total EBITDA Margin | B44: 0.04989421538 | C44: 0.02977740699 | D44: 2.01168084 | G44: 0.1058128323 | H44: 0.08098204288 | I44: 2.483078946 | L44: 0.09679356638 | M44: 0.07133879719 | N44: 2.545476919 | Q44: 0.1402332657 | R44: 0.1097777163 | S44: 0.03045554936
A46: EBIT
A47: Regionals | B47: 2110.724948 | C47: 1050.47381 | D47: 1060.251138 | E47: 1.009307541 | G47: 18985.65689 | H47: 7242.36158 | I47: =G47-H47 -> 11743.29531 | J47: =I47/H47 -> 1.621473214 | L47: 21428.58481 | M47: 8964.35999 | N47: 12464.22482 | O47: 1.390419934 | Q47: 30912.08744 | R47: 19148.54219 | S47: 11763.54525 | T47: 0.6143311137
A48: ABC | B48: -2882.16016 | C48: -2627.85565 | D48: -254.30451 | E48: 0.09677263285 | G48: -2724.69531 | H48: -2148.98019 | I48: -575.71512 | J48: 0.2679015482 | L48: -4249.11049 | M48: -3557.45473 | N48: -691.65576 | O48: 0.1944243321 | Q48: 811.54614 | R48: 1244.7133 | S48: -433.16716 | T48: -0.3480055688
A49: Supplements & Magazines | B49: -76.77509 | C49: -241.94699 | D49: 165.1719 | E49: -0.6826780527 | G49: 447.4173 | H49: -449.30293 | I49: 896.72023 | J49: -1.99580321 | L49: 453.79093 | M49: -1087.61077 | N49: 1541.4017 | O49: -1.417236517 | Q49: 1424.46508 | R49: -1108.03946 | S49: 2532.50454 | T49: -2.285572519
A50: Total EBIT | B50: -848.2103019 | C50: -1819.32883 | D50: 971.1185281 | E50: -0.5337784528 | G50: 16708.37888 | H50: 4644.07846 | I50: 12064.30042 | J50: 2.597781351 | L50: 17633.26525 | M50: 4319.29448 | N50: 13313.97077 | O50: 3.082441088 | Q50: 33148.09866 | R50: 19285.21602 | S50: 13862.88264 | T50: 0.7188347087
A52: EBIT Margin
A53: Regionals | B53: 0.04684316692 | C53: 0.01936587388 | D53: =+(B53-C53)*100 -> 2.747729304 | G53: 0.1996845346 | H53: 0.06513580429 | I53: =+(G53-H53)*100 -> 13.45487303 | L53: 0.1513151787 | M53: 0.05455379283 | N53: 9.676138588 | Q53: 0.1570266728 | R53: 0.08468541672 | S53: 0.07234125611
A54: ABC | B54: -0.1656349177 | C54: -0.1194196448 | D54: -4.621527292 | G54: -0.0729848906 | H54: -0.0471616867 | I54: -2.582320389 | L54: -0.077060079 | M54: -0.05348293783 | N54: -2.357714117 | Q54: 0.0102191792 | R54: 0.01371516708 | S54: -0.003495987873
A55: Supplements & Magazines | B55: -0.02110240268 | C55: -0.04295062221 | D55: 2.184821953 | G55: 0.05526858187 | H55: -0.03869227258 | I55: 9.396085445 | L55: 0.03877698079 | M55: -0.06643953023 | N55: 10.5216511 | Q55: 0.08543275332 | R55: -0.04913013799 | S55: 0.1345628913
A56: Total EBIT Margin | B56: -0.01346533357 | C56: -0.02325203473 | D56: =+(B56-C56)*100 -> 0.9786701152 | G56: 0.1244362946 | H56: 0.02891610126 | I56: =+(G56-H56)*100 -> 9.552019337 | L56: 0.08848578128 | M56: 0.0183179678 | N56: 7.016781348 | Q56: 0.1183769962 | R56: 0.059349753 | S56: 0.05902724322
A58: Comparable EBITDA
A59: Regionals | B59: 4161.476961 | C59: 7032.04565 | D59: -2870.568689 | E59: -0.408212465 | G59: 12542.13768 | H59: 15573.44351 | I59: =G59-H59 -> -3031.305829 | J59: =I59/H59 -> -0.1946458294 | L59: 16992.61646 | M59: 19536.30125 | N59: -2543.684787 | O59: -0.1302029875 | Q59: 28734.55837 | R59: 31966.61834 | S59: -3232.059973 | T59: -0.101107347
A60: ABC | B60: -1042.28221 | C60: 955.6403 | D60: -1997.92251 | E60: -2.090663726 | G60: 1001.07852 | H60: 3047.62014 | I60: -2046.54162 | J60: -0.6715212284 | L60: 1502.09909 | M60: 3620.86592 | N60: -2118.76683 | O60: -0.5851547328 | Q60: 8637.16601 | R60: 10371.22746 | S60: -1734.06145 | T60: -0.1671992497
A61: Supplements& Magazines | B61: 31.19142 | C61: -167.76461 | D61: 198.95603 | E61: -1.185923718 | G61: 664.54286 | H61: -96.94305 | I61: 761.48591 | J61: -7.854981971 | L61: 794.1081 | M61: -651.37526 | N61: 1445.48336 | O61: -2.219125363 | Q61: 1896.59865 | R61: -210.82626 | S61: 2107.42491 | T61: -9.996026633
A62: Total comparable EBITDA | B62: 3150.386171 | C62: 7819.92134 | D62: -4669.535169 | E62: -0.5971332659 | G62: 14207.75906 | H62: 18524.1206 | I62: -4316.361539 | J62: -0.2330130338 | L62: 19288.82365 | M62: 22505.7919 | N62: -3216.968247 | O62: -0.1429395714 | Q62: 39268.32303 | R62: 42127.01953 | S62: -2858.696503 | T62: -0.06785897827

Sheet Audiovisual
A1: AUDIOVISUAL
A3: Thousand Euro | B3: IFRS | G3: IFRS | L3: IFRS | Q3: IFRS
B4: 1Q21 | C4: 1Q20 | D4: Var Abs | E4: Var % | G4: 1H21 | H4: 1H20 | I4: Var Abs | J4: Var % | L4: 9M21 | M4: 9M20 | N4: Var Abs | O4: Var % | Q4: 2021 | R4: 2020 | S4: Var Abs | T4: Var %
A6: Advertising Revenues
A7: DTT | B7: 461.22645 | C7: 750.31577 | D7: -289.08932 | E7: -0.3852902092 | G7: 887.68835 | H7: 1123.18732 | I7: -235.49897 | J7: -0.2096702534 | L7: 1093.85258 | M7: 1596.6987 | N7: -502.84612 | O7: -0.3149286212 | Q7: 1660.09003 | R7: 2387.3157 | S7: -727.22567 | T7: -0.3046206541
A8: Radio | B8: 9.414 | C8: 7.39897 | D8: 2.01503 | E8: 0.272339258 | G8: 18.784 | H8: 14.80265 | I8: 3.98135 | J8: 0.2689619764 | L8: 18.759 | M8: 20.17365 | N8: -1.41465 | O8: -0.0701236514 | Q8: 29.304 | R8: 30.53486 | S8: -1.23086 | T8: -0.04030999323
A9: Content | B9: 0 | C9: 0 | D9: 0 | E9: n.a. | G9: 0 | H9: 0 | I9: 0 | J9: n.a. | L9: 0 | M9: 0 | N9: 0 | O9: n.a. | Q9: 0 | R9: 0 | S9: 0 | T9: n.a.
A10: Adjustments intersegment | B10: 0 | C10: -2.819433575e-14 | D10: 2.819433575e-14 | E10: 1 | G10: 0 | H10: -9.276845958e-14 | I10: 9.276845958e-14 | J10: 1 | L10: 0 | M10: 0 | N10: -1.382431947e-13 | O10: -1 | Q10: 0 | R10: -1.309672371e-13 | S10: 1.309672371e-13 | T10: 1
A11: Adjustments intersegment | B11: 470.64045 | C11: 757.71474 | D11: -287.07429 | E11: -0.3788685568 | G11: 906.47235 | H11: 1137.98997 | I11: -231.51762 | J11: -0.2034443414 | L11: 1112.61158 | M11: 1616.87235 | N11: -504.26077 | O11: -0.3118741996 | Q11: 1689.39403 | R11: 2417.85056 | S11: -728.45653 | T11: -0.3012826938
A13: Other Revenues
A14: DTT | B14: 5889.82707 | C14: 6640.01772 | D14: -750.19065 | E14: -0.1129802181 | G14: 11537.27608 | H14: 11500.39423 | I14: 36.88185 | J14: 0.003207007452 | L14: 17223.31405 | M14: 16930.15277 | N14: 293.16128 | O14: 0.01731592644 | Q14: 22692.71255 | R14: 23629.34207 | S14: -936.62952 | T14: -0.03963840877
A15: Radio | B15: 758.56723 | C15: 834.14009 | D15: -75.57286 | E15: -0.09059972168 | G15: 1510.85823 | H15: 1590.6227 | I15: -79.76447 | J15: -0.05014669412 | L15: 2263.34125 | M15: 2366.5147 | N15: -103.17345 | O15: -0.04359721493 | Q15: 3044.54241 | R15: 3187.84839 | S15: -143.30598 | T15: -0.04495382542
A16: Content | B16: 409.93856 | C16: 372.83494 | D16: 37.10362 | E16: 0.09951755058 | G16: 787.566 | H16: 1113.97974 | I16: -326.41374 | J16: -0.2930158676 | L16: 1086.33912 | M16: 1683.02048 | N16: -596.68136 | O16: -0.3545300649 | Q16: 1691.12831 | R16: 2186.88671 | S16: -495.7584 | T16: -0.2266959682
A17: Adjustments intersegment | B17: -52.32918 | C17: -58.24734 | D17: 5.91816 | E17: 0.1016039531 | G17: -104.65836 | H17: -116.49468 | I17: 11.83632 | J17: 0.1016039531 | L17: -156.98754 | M17: -174.74202 | N17: 17.75448 | O17: 0.1016039531 | Q17: -209.31672 | R17: -232.98936 | S17: 23.67264 | T17: 0.1016039531
A18: Total Other Revenues | B18: 7006.00368 | C18: 7788.74541 | D18: -782.74173 | E18: -0.1004965099 | G18: 13731.04195 | H18: 14088.50199 | I18: -357.46004 | J18: -0.02537246616 | L18: 20416.00688 | M18: 20804.94593 | N18: -388.93905 | O18: -0.0186945475 | Q18: 27219.06655 | R18: 28771.08781 | S18: -1552.02126 | T18: -0.053943781
A20: Total Revenues
A21: DTT | B21: 6351.05352 | C21: 7390.33349 | D21: -1039.27997 | E21: -0.1406269381 | G21: 12424.96443 | H21: 12623.58155 | I21: -198.61712 | J21: -0.01573381684 | L21: 18317.16663 | M21: 18526.85147 | N21: -209.68484 | O21: -0.01131788854 | Q21: 24352.80258 | R21: 26016.65777 | S21: -1663.85519 | T21: -0.06395345646
A22: Radio | B22: 767.98123 | C22: 841.53906 | D22: -73.55783 | E22: -0.08740869378 | G22: 1529.64223 | H22: 1605.42535 | I22: -75.78312 | J22: -0.0472043873 | L22: 2282.10025 | M22: 2386.68835 | N22: -104.5881 | O22: -0.04382143148 | Q22: 3073.84641 | R22: 3218.38325 | S22: -144.53684 | T22: -0.04490976642
A23: Content | B23: 409.93856 | C23: 372.83494 | D23: 37.10362 | E23: 0.09951755058 | G23: 787.566 | H23: 1113.97974 | I23: -326.41374 | J23: -0.2930158676 | L23: 1086.33912 | M23: 1683.02048 | N23: -596.68136 | O23: -0.3545300649 | Q23: 1691.12831 | R23: 2186.88671 | S23: -495.7584 | T23: -0.2266959682
A24: Adjustments intersegment | B24: -52.32918 | C24: -58.24734 | D24: 5.91816 | E24: 0.1016039531 | G24: -104.65836 | H24: -116.49468 | I24: 11.83632 | J24: 0.1016039531 | L24: -156.98754 | M24: -174.74202 | N24: 17.75448 | O24: 0.1016039531 | Q24: -209.31672 | R24: -232.98936 | S24: 23.67264 | T24: 0.1016039531
A25: Total Revenues | B25: 7476.64413 | C25: 8546.46015 | D25: -1069.81602 | E25: -0.125176506 | G25: 14637.5143 | H25: 15226.49196 | I25: -588.97766 | J25: -0.03868111326 | L25: 21528.61846 | M25: 22421.81828 | N25: -893.19982 | O25: -0.03983619031 | Q25: 28908.46058 | R25: 31188.93837 | S25: -2280.47779 | T25: -0.07311816013
A27: EBITDA
A28: DTT | B28: 1307.13383 | C28: 1438.17115 | D28: -131.03732 | E28: -0.09111385665 | G28: 2596.77345 | H28: 2613.32812 | I28: -16.55467 | J28: -0.00633470779 | L28: 3887.41727 | M28: 3818.89487 | N28: 68.5224 | O28: 0.01794299197 | Q28: 5422.92667 | R28: 3860.91368 | S28: 1562.01299 | T28: 0.4045708139
A29: Radio | B29: 651.29963 | C29: 654.91994 | D29: -3.62031 | E29: -0.005527866505 | G29: 1297.77347 | H29: 1238.20689 | I29: 59.56658 | J29: 0.04810713014 | L29: 1939.25928 | M29: 1829.10739 | N29: 110.15189 | O29: 0.06022166364 | Q29: 2567.28312 | R29: 2428.66443 | S29: 138.61869 | T29: 0.05707609841
A30: Content | B30: 311.58925 | C30: 245.93692 | D30: 65.65233 | E30: 0.2669478417 | G30: 588.67044 | H30: 870.48925 | I30: -281.81881 | J30: -0.3237476052 | L30: 848.13805 | M30: 1319.92579 | N30: -471.78774 | O30: -0.3574350494 | Q30: 1314.20176 | R30: 1644.26681 | S30: -330.06505 | T30: -0.2007369169
A31: Total EBITDA | B31: 2270.02271 | C31: 2339.02801 | D31: -69.0053 | E31: -0.02950169887 | G31: 4483.21736 | H31: 4722.02426 | I31: -238.8069 | J31: -0.05057299303 | L31: 6674.8146 | M31: 6967.92805 | N31: -293.11345 | O31: -0.04206608448 | Q31: 9304.41155 | R31: 7933.84492 | S31: 1370.56663 | T31: 0.1727493597
A33: EBITDA Margin
A34: DTT | B34: 0.205813701 | C34: 0.194601658 | D34: 1.121204301 | G34: 0.2089964494 | H34: 0.2070195459 | I34: 0.1976903526 | L34: 0.212228089 | M34: 0.2061275698 | N34: 0.6100519188 | Q34: 0.2226818311 | R34: 0.1484016015 | S34: 7.428022951
A35: Radio | B35: 0.8480671201 | C35: 0.7782406915 | D35: 6.982642855 | G35: 0.848416345 | H35: 0.7712640703 | I35: 7.715227475 | L35: 0.8497695401 | M35: 0.7663788152 | N35: 8.339072491 | Q35: 0.8352021466 | R35: 0.7546225049 | S35: 8.057964167
A36: Content | B36: 0.7600876824 | C36: 0.6596402151 | D36: 10.04474674 | G36: 0.7474553752 | H36: 0.781422874 | I36: -3.396749882 | L36: 0.7807304684 | M36: 0.7842600881 | N36: -0.3529619747 | Q36: 0.777115345 | R36: 0.7518756241 | S36: 2.523972082
A37: Total EBITDA Margin | B37: 0.3036151876 | C37: 0.2736838374 | D37: 2.993135018 | G37: 0.3062826972 | H37: 0.3101189869 | I37: -0.3836289663 | L37: 0.3100437965 | M37: 0.3107655215 | N37: -0.07217250003 | Q37: 0.3218577317 | R37: 0.2543800891 | S37: 6.747764267
A39: EBIT
A40: DTT | B40: 1319.79266 | C40: 1405.83243 | D40: -86.03977 | E40: -0.06120200969 | G40: 2601.78775 | H40: 2553.78944 | I40: 47.99831 | J40: 0.01879493636 | L40: 3860.63909 | M40: 3732.77318 | N40: 127.86591 | O40: 0.03425493697 | Q40: 5387.69019 | R40: 3602.79303 | S40: 1784.89716 | T40: 0.4954203989
A41: Radio | B41: 649.25463 | C41: 652.03635 | D41: -2.78172 | E41: -0.00426620387 | G41: 1275.9675 | H41: 1232.4657 | I41: 43.5018 | J41: 0.03529656038 | L41: 1915.50431 | M41: 1820.49961 | N41: 95.0047 | O41: 0.05218605897 | Q41: 2541.58126 | R41: 2417.27392 | S41: 124.30734 | T41: 0.05142459817
A42: Content | B42: 267.00376 | C42: 195.2641 | D42: 71.73966 | E42: 0.3673981034 | G42: 499.72446 | H42: 769.24461 | I42: -269.52015 | J42: -0.3503698908 | L42: 715.1633 | M42: 1174.22267 | N42: -459.05937 | O42: -0.3909474597 | Q42: 1138.40073 | R42: 1453.84815 | S42: -315.44742 | T42: -0.216974118
A43: Total EBIT | B43: 2236.05105 | C43: 2253.13288 | D43: -17.08183 | E43: -0.007581368215 | G43: 4377.47971 | H43: 4555.49975 | I43: -178.02004 | J43: -0.03907804846 | L43: 6491.3067 | M43: 6727.49546 | N43: -236.18876 | O43: -0.03510797761 | Q43: 9067.67218 | R43: 7473.9151 | S43: 1593.75708 | T43: 0.2132425989
A45: EBIT Margin
A46: DTT | B46: 0.2078068868 | C46: 0.1902258446 | D46: 1.758104222 | G46: 0.209400016 | H46: 0.2023030809 | I46: 0.7096935029 | L46: 0.2107661719 | M46: 0.2014790903 | N46: 0.928708158 | Q46: 0.2212349142 | R46: 0.1384802407 | S46: 8.275467354
A47: Radio | B47: 0.8454042946 | C47: 0.7748141245 | D47: 7.059017009 | G47: 0.8341607436 | H47: 0.7676879526 | I47: 6.647279098 | L47: 0.8393602823 | M47: 0.7627722363 | N47: 7.6588046 | Q47: 0.8268406813 | R47: 0.7510833025 | S47: 7.575737888
A48: Content | B48: 0.6513262866 | C48: 0.5237280068 | D48: 12.75982797 | G48: 0.6345175642 | H48: 0.6905373432 | I48: -5.601977892 | L48: 0.6583241704 | M48: 0.6976876895 | N48: -3.936351901 | Q48: 0.6731604712 | R48: 0.664802682 | S48: 0.8357789206
A49: Total EBIT Margin | B49: 0.2990714833 | C49: 0.2636334623 | D49: 3.543802096 | G49: 0.2990589536 | H49: 0.2991824881 | I49: -0.01235345151 | L49: 0.3015198914 | M49: 0.3000423684 | N49: 0.1477523023 | Q49: 0.3136684555 | R49: 0.2396335204 | S49: 7.403493504
A51: Comparable EBITDA
A52: DTT | B52: 1307.19361 | C52: 1438.71967 | D52: -131.52606 | E52: -0.09141882379 | G52: 2596.83323 | H52: 2613.87664 | I52: -17.04341 | J52: -0.006520357441 | L52: 3887.47705 | M52: 3819.639 | N52: 67.83805 | O52: 0.01776033023 | Q52: 5423.38354 | R52: 5185.50454 | S52: 237.879 | T52: 0.04587383892
A53: Radio | B53: 651.29963 | C53: 654.91994 | D53: -3.62031 | E53: -0.005527866505 | G53: 1297.77347 | H53: 1238.20689 | I53: 59.56658 | J53: 0.04810713014 | L53: 1939.25928 | M53: 1829.10739 | N53: 110.15189 | O53: 0.06022166364 | Q53: 2567.28312 | R53: 2428.66443 | S53: 138.61869 | T53: 0.05707609841
A54: Content | B54: 311.58925 | C54: 245.93692 | D54: 65.65233 | E54: 0.2669478417 | G54: 588.67044 | H54: 870.48925 | I54: -281.81881 | J54: -0.3237476052 | L54: 848.13805 | M54: 1319.92579 | N54: -471.78774 | O54: -0.3574350494 | Q54: 1314.20176 | R54: 1644.26681 | S54: -330.06505 | T54: -0.2007369169
A55: Total comparable EBITDA | B55: 2270.08249 | C55: 2339.57653 | D55: -69.49404 | E55: -0.02970368317 | G55: 4483.27714 | H55: 4722.57278 | I55: -239.29564 | J55: -0.05067060925 | L55: 6674.87438 | M55: 6968.67218 | N55: -293.7978 | O55: -0.04215979636 | Q55: 9304.86842 | R55: 9258.43578 | S55: 46.43264 | T55: 0.005015171148

Sheet Audiovisual 19vs21
A1: AUDIOVISUAL
A3: Thousand Euro | B3: IFRS | G3: IFRS | L3: IFRS | Q3: IFRS
B4: 1Q21 | C4: 1Q19 | D4: Var Abs | E4: Var % | G4: 1H21 | H4: 1H19 | I4: Var Abs | J4: Var % | L4: 9M21 | M4: 9M19 | N4: Var Abs | O4: Var % | Q4: 2021 | R4: 2019 | S4: Var Abs | T4: Var %
A6: Advertising Revenues
A7: DTT | B7: 461.22645 | C7: 798.45981 | D7: =B7-C7 -> -337.23336 | E7: =D7/C7 -> -0.4223548334 | G7: 887.68835 | H7: 1536.79148 | I7: =G7-H7 -> -649.10313 | J7: =I7/H7 -> -0.4223755392 | L7: 1093.85258 | M7: 2209.0569 | N7: -1115.20432 | O7: -0.5048327728 | Q7: 1660.09003 | R7: 3386.68165 | S7: -1726.59162 | T7: -0.5098181047
A8: Radio | B8: 9.414 | C8: 11.17069 | D8: =B8-C8 -> -1.75669 | E8: =D8/C8 -> -0.1572588623 | G8: 18.784 | H8: 23.66071 | I8: =G8-H8 -> -4.87671 | J8: =I8/H8 -> -0.2061100449 | L8: 18.759 | M8: 29.00446 | N8: -10.24546 | O8: -0.3532373987 | Q8: 29.304 | R8: 41.05159 | S8: -11.74759 | T8: -0.2861665041
A9: Content | B9: 0 | C9: 0 | D9: 0 | E9: n.a. | G9: 0 | H9: 0 | I9: 0 | J9: n.a. | L9: 0 | M9: 0 | N9: 0 | O9: n.a. | Q9: 0 | R9: 0 | S9: 0 | T9: n.a.
A10: Adjustments intersegment | B10: 0 | C10: -5.638867151e-14 | D10: 5.638867151e-14 | E10: -1 | G10: 0 | H10: -3.637978807e-14 | I10: =G10-H10 -> 3.637978807e-14 | J10: =I10/H10 -> -1 | L10: 0 | M10: -3.637978807e-14 | N10: 3.637978807e-14 | O10: -1 | Q10: 0 | R10: 3.20142135e-13 | S10: -3.20142135e-13 | T10: -1
A11: Adjustments intersegment | B11: 470.64045 | C11: 809.6305 | D11: -338.99005 | E11: -0.4186972329 | G11: 906.47235 | H11: 1560.45219 | I11: -653.97984 | J11: -0.4190963646 | L11: 1112.61158 | M11: 2238.06136 | N11: -1125.44978 | O11: -0.5028681519 | Q11: 1689.39403 | R11: 3427.73324 | S11: -1738.33921 | T11: -0.5071395842
A13: Other Revenues
A14: DTT | B14: 5889.82707 | C14: 6002.93931 | D14: -113.11224 | E14: -0.01884280919 | G14: 11537.27608 | H14: 12120.82518 | I14: =G14-H14 -> -583.5491 | J14: =I14/H14 -> -0.04814433764 | L14: 17223.31405 | M14: 18028.25111 | N14: -804.93706 | O14: -0.04464864923 | Q14: 22692.71255 | R14: 24190.24358 | S14: -1497.53103 | T14: -0.06190640557
A15: Radio | B15: 758.56723 | C15: 745.36276 | D15: 13.20447 | E15: 0.01771549467 | G15: 1510.85823 | H15: 1661.73448 | I15: -150.87625 | J15: -0.09079443907 | L15: 2263.34125 | M15: 2487.6692 | N15: -224.32795 | O15: -0.09017595667 | Q15: 3044.54241 | R15: 3339.99019 | S15: -295.44778 | T15: -0.08845767897
A16: Content | B16: 409.93856 | C16: 744.37865 | D16: -334.44009 | E16: -0.4492875904 | G16: 787.566 | H16: 1357.81713 | I16: -570.25113 | J16: -0.4199763852 | L16: 1086.33912 | M16: 1743.88194 | N16: -657.54282 | O16: -0.3770569583 | Q16: 1691.12831 | R16: 2216.79006 | S16: -525.66175 | T16: -0.2371274391
A17: Adjustments intersegment | B17: -52.32918 | C17: -49.65429 | D17: -2.67489 | E17: 0.05387026982 | G17: -104.65836 | H17: -112.50858 | I17: 7.85022 | J17: -0.06977441187 | L17: -156.98754 | M17: -168.76287 | N17: 11.77533 | O17: -0.06977441187 | Q17: -209.31672 | R17: -225.01716 | S17: 15.70044 | T17: -0.06977441187
A18: Total Other Revenues | B18: 7006.00368 | C18: 7443.02643 | D18: -437.02275 | E18: -0.05871573265 | G18: 13731.04195 | H18: 15027.86821 | I18: -1296.82626 | J18: -0.08629475864 | L18: 20416.00688 | M18: 22091.03938 | N18: -1675.0325 | O18: -0.07582406926 | Q18: 27219.06655 | R18: 29522.00667 | S18: -2302.94012 | T18: -0.078007574
A20: Total Revenues
A21: DTT | B21: 6351.05352 | C21: 6801.39912 | D21: -450.3456 | E21: -0.06621367046 | G21: 12424.96443 | H21: 13657.61666 | I21: =G21-H21 -> -1232.65223 | J21: =I21/H21 -> -0.0902538313 | L21: 18317.16663 | M21: 20237.30801 | N21: -1920.14138 | O21: -0.09488126479 | Q21: 24352.80258 | R21: 27576.92523 | S21: -3224.12265 | T21: -0.1169137829
A22: Radio | B22: 767.98123 | C22: 756.53345 | D22: 11.44778 | E22: 0.01513188875 | G22: 1529.64223 | H22: 1685.39519 | I22: =G22-H22 -> -155.75296 | J22: -0.09241331702 | L22: 2282.10025 | M22: 2516.67366 | N22: -234.57341 | O22: -0.09320771848 | Q22: 3073.84641 | R22: 3381.04178 | S22: -307.19537 | T22: -0.09085819992
A23: Content | B23: 409.93856 | C23: 744.37865 | D23: -334.44009 | E23: -0.4492875904 | G23: 787.566 | H23: 1357.81713 | I23: -570.25113 | J23: -0.4199763852 | L23: 1086.33912 | M23: 1743.88194 | N23: -657.54282 | O23: -0.3770569583 | Q23: 1691.12831 | R23: 2216.79006 | S23: -525.66175 | T23: -0.2371274391
A24: Adjustments intersegment | B24: -52.32918 | C24: -49.65429 | D24: -2.67489 | E24: 0.05387026982 | G24: -104.65836 | H24: -112.50858 | I24: 7.85022 | J24: -0.06977441187 | L24: -156.98754 | M24: -168.76287 | N24: 11.77533 | O24: -0.06977441187 | Q24: -209.31672 | R24: -225.01716 | S24: 15.70044 | T24: -0.06977441187
A25: Total Revenues | B25: 7476.64413 | C25: 8252.65693 | D25: -776.0128 | E25: -0.09403187441 | G25: 14637.5143 | H25: 16588.3204 | I25: -1950.8061 | J25: -0.1176011828 | L25: 21528.61846 | M25: 24329.10074 | N25: -2800.48228 | O25: -0.1151083351 | Q25: 28908.46058 | R25: 32949.73991 | S25: -4041.27933 | T25: -0.1226498097
A27: EBITDA
A28: DTT | B28: 1307.13383 | C28: 1501.99077 | D28: -194.85694 | E28: -0.1297324484 | G28: 2596.77345 | H28: 2901.11673 | I28: =G28-H28 -> -304.34328 | J28: =I28/H28 -> -0.1049055617 | L28: 3887.41727 | M28: 4239.00237 | N28: -351.5851 | O28: -0.08294052924 | Q28: 5422.92667 | R28: 6149.46436 | S28: -726.53769 | T28: -0.1181464998
A29: Radio | B29: 651.29963 | C29: 628.97254 | D29: 22.32709 | E29: 0.03549771823 | G29: 1297.77347 | H29: 1277.55922 | I29: 20.21425 | J29: 0.0158225542 | L29: 1939.25928 | M29: 1909.362 | N29: 29.89728 | O29: 0.01565825653 | Q29: 2567.28312 | R29: 2533.96273 | S29: 33.32039 | T29: 0.01314951858
A30: Content | B30: 311.58925 | C30: 587.81188 | D30: -276.22263 | E30: -0.4699167189 | G30: 588.67044 | H30: 1072.50198 | I30: -483.83154 | J30: -0.4511241462 | L30: 848.13805 | M30: 1357.38102 | N30: -509.24297 | O30: -0.3751658248 | Q30: 1314.20176 | R30: 1744.74609 | S30: -430.54433 | T30: -0.2467661813
A31: Total EBITDA | B31: 2270.02271 | C31: 2718.77519 | D31: -448.75248 | E31: -0.1650568541 | G31: 4483.21736 | H31: 5251.17793 | I31: -767.96057 | J31: -0.1462453911 | L31: 6674.8146 | M31: 7505.74539 | N31: -830.93079 | O31: -0.1107059655 | Q31: 9304.41155 | R31: 10428.17318 | S31: -1123.76163 | T31: -0.1077620798
A33: EBITDA Margin
A34: DTT | B34: 0.205813701 | C34: 0.220835558 | D34: =+(B34-C34)*100 -> -1.502185705 | G34: 0.2089964494 | H34: 0.2124174958 | I34: =+(G34-H34)*100 -> -0.3421046419 | L34: 0.212228089 | M34: 0.2094647355 | N34: 0.276335349 | Q34: 0.2226818311 | R34: 0.2229931114 | S34: -0.0003112803425
A35: Radio | B35: 0.8480671201 | C35: 0.8313876141 | D35: =+(B35-C35)*100 -> 1.667950595 | G35: 0.848416345 | H35: 0.7580176018 | I35: =+(G35-H35)*100 -> 9.039874325 | L35: 0.8497695401 | M35: 0.7586847792 | N35: 9.108476096 | Q35: 0.8352021466 | R35: 0.749462117 | S35: 0.08574002965
A36: Content | B36: 0.7600876824 | C36: 0.7896678391 | D36: =+(B36-C36)*100 -> -2.958015667 | G36: 0.7474553752 | H36: 0.7898721826 | I36: =+(G36-H36)*100 -> -4.24168074 | L36: 0.7807304684 | M36: 0.7783674966 | N36: 0.2362971803 | Q36: 0.777115345 | R36: 0.7870596867 | S36: -0.009944341692
A37: Total EBITDA Margin | B37: 0.3036151876 | C37: 0.3294424103 | D37: =+(B37-C37)*100 -> -2.582722267 | G37: 0.3062826972 | H37: 0.3165587476 | I37: =+(G37-H37)*100 -> -1.027605037 | L37: 0.3100437965 | M37: 0.3085089527 | N37: 0.1534843742 | Q37: 0.3218577317 | R37: 0.3164872684 | S37: 0.005370463285
A39: EBIT
A40: DTT | B40: 1319.79266 | C40: 1466.89713 | D40: -147.10447 | E40: -0.1002827444 | G40: 2601.78775 | H40: 2832.9854 | I40: =G40-H40 -> -231.19765 | J40: =I40/H40 -> -0.0816091922 | L40: 3860.63909 | M40: 4219.5093 | N40: -358.87021 | O40: -0.08505022373 | Q40: 5387.69019 | R40: 6097.13711 | S40: -709.44692 | T40: -0.1163573833
A41: Radio | B41: 649.25463 | C41: 626.06094 | D41: 23.19369 | E41: 0.03704701654 | G41: 1275.9675 | H41: 1271.75103 | I41: 4.21647 | J41: 0.003315483849 | L41: 1915.50431 | M41: 1900.66221 | N41: 14.8421 | O41: 0.007808909927 | Q41: 2541.58126 | R41: 2522.37181 | S41: 19.20945 | T41: 0.007615629831
A42: Content | B42: 267.00376 | C42: 503.23972 | D42: -236.23596 | E42: -0.4694302747 | G42: 499.72446 | H42: 918.31487 | I42: -418.59041 | J42: -0.455824493 | L42: 715.1633 | M42: 1148.80702 | N42: -433.64372 | O42: -0.3774730764 | Q42: 1138.40073 | R42: 1481.90267 | S42: -343.50194 | T42: -0.2317979088
A43: Total EBIT | B43: 2236.05105 | C43: 2596.19779 | D43: -360.14674 | E43: -0.1387208407 | G43: 4377.47971 | H43: 5023.0513 | I43: -645.57159 | J43: -0.1285217991 | L43: 6491.3067 | M43: 7268.97853 | N43: -777.67183 | O43: -0.1069850223 | Q43: 9067.67218 | R43: 10101.41159 | S43: -1033.73941 | T43: -0.102336134
A45: EBIT Margin
A46: DTT | B46: 0.2078068868 | C46: 0.2156757902 | D46: =+(B46-C46)*100 -> -0.7868903431 | G46: 0.209400016 | H46: 0.2074289732 | I46: =+(G46-H46)*100 -> 0.1971042775 | L46: 0.2107661719 | M46: 0.2085015111 | N46: 0.2264660798 | Q46: 0.2212349142 | R46: 0.2210956102 | S46: 0.0001393040704
A47: Radio | B47: 0.8454042946 | C47: 0.827539007 | D47: =+(B47-C47)*100 -> 1.786528755 | G47: 0.8341607436 | H47: 0.754571413 | I47: =+(G47-H47)*100 -> 7.958933058 | L47: 0.8393602823 | M47: 0.7552279186 | N47: 8.413236368 | Q47: 0.8268406813 | R47: 0.7460339073 | S47: 0.08080677401
A48: Content | B48: 0.6513262866 | C48: 0.6760534037 | D48: -2.472711718 | G48: 0.6345175642 | H48: 0.6763170457 | I48: -4.179948149 | L48: 0.6583241704 | M48: 0.6587642166 | N48: -0.04400461243 | Q48: 0.6731604712 | R48: 0.668490308 | S48: 0.00467016318
A49: Total EBIT Margin | B49: 0.2990714833 | C49: 0.3145893271 | D49: -1.551784376 | G49: 0.2990589536 | H49: 0.3028065035 | I49: -0.3747549935 | L49: 0.3015198914 | M49: 0.298777115 | N49: 0.2742776383 | Q49: 0.3136684555 | R49: 0.3065702982 | S49: 0.00709815726
A51: Comparable EBITDA
A52: DTT | B52: 1307.19361 | C52: 1501.99077 | D52: -194.79716 | E52: -0.1296926478 | G52: 2596.83323 | H52: 2901.11673 | I52: =G52-H52 -> -304.2835 | J52: =I52/H52 -> -0.1048849558 | L52: 3887.47705 | M52: 4239.06657 | N52: -351.58952 | O52: -0.0829403158 | Q52: 5423.38354 | R52: 6149.52856 | S52: -726.14502 | T52: -0.1180814127
A53: Radio | B53: 651.29963 | C53: 628.97254 | D53: 22.32709 | E53: 0.03549771823 | G53: 1297.77347 | H53: 1277.55922 | I53: 20.21425 | J53: 0.0158225542 | L53: 1939.25928 | M53: 1909.362 | N53: 29.89728 | O53: 0.01565825653 | Q53: 2567.28312 | R53: 2533.96273 | S53: 33.32039 | T53: 0.01314951858
A54: Content | B54: 311.58925 | C54: 587.81188 | D54: -276.22263 | E54: -0.4699167189 | G54: 588.67044 | H54: 1072.50198 | I54: -483.83154 | J54: -0.4511241462 | L54: 848.13805 | M54: 1357.38102 | N54: -509.24297 | O54: -0.3751658248 | Q54: 1314.20176 | R54: 1744.74609 | S54: -430.54433 | T54: -0.2467661813
A55: Total comparable EBITDA | B55: 2270.08249 | C55: 2718.77519 | D55: -448.6927 | E55: -0.1650348663 | G55: 4483.27714 | H55: 5251.17793 | I55: -767.90079 | J55: -0.146234007 | L55: 6674.87438 | M55: 7505.80959 | N55: -830.93521 | O55: -0.1107056074 | Q55: 9304.86842 | R55: 10428.23738 | S55: -1123.36896 | T55: -0.1077237618

Sheet Classified
A1: CLASSIFIED
A3: Thousand Euro | B3: IFRS | G3: IFRS | L3: IFRS | Q3: IFRS
B4: 1Q21 | C4: 1Q20 | D4: Var Abs | E4: Var % | G4: 1H21 | H4: 1H20 | I4: Var Abs | J4: Var % | L4: 9M21 | M4: 9M20 | N4: Var Abs | O4: Var % | Q4: 2021 | R4: 2020 | S4: Var Abs | T4: Var %
A6: Circulation Revenues
A7: Classified | B7: 0 | C7: 0 | D7: 0 | E7: n.a. | G7: 0 | H7: 0 | I7: 0 | J7: n.a. | L7: 0 | M7: 0 | N7: 0 | O7: n.a. | Q7: 0 | R7: 0 | S7: 0 | T7: n.a.
A8: Total Circulation Revenues | B8: 0 | C8: 0 | D8: 0 | E8: n.a. | G8: 0 | H8: 0 | I8: 0 | J8: n.a. | L8: 0 | M8: 0 | N8: 0 | O8: n.a. | Q8: 0 | R8: 0 | S8: 0 | T8: n.a.
A10: Advertising Revenues
A11: Classified | B11: 5606.84045 | C11: 6301.57446 | D11: -694.73401 | E11: -0.1102476872 | G11: 11524.0452 | H11: 10176.77164 | I11: 1347.27356 | J11: 0.132387127 | L11: 17228.34986 | M11: 15603.4886 | N11: 1624.86126 | O11: 0.1041344857 | Q11: 23294.35985 | R11: 21500.80148 | S11: 1793.55837 | T11: 0.08341820986
A12: Total Advertising Revenues | B12: 5606.84045 | C12: 6301.57446 | D12: -694.73401 | E12: -0.1102476872 | G12: 11524.0452 | H12: 10176.77164 | I12: 1347.27356 | J12: 0.132387127 | L12: 17228.34986 | M12: 15603.4886 | N12: 1624.86126 | O12: 0.1041344857 | Q12: 23294.35985 | R12: 21500.80148 | S12: 1793.55837 | T12: 0.08341820986
A14: Other Revenues
A15: Classified | B15: 356.76341 | C15: 351.33073 | D15: 5.43268 | E15: 0.01546315063 | G15: 683.22883 | H15: 630.16903 | I15: 53.0598 | J15: 0.08419931395 | L15: 1041.22266 | M15: 873.87513 | N15: 167.34753 | O15: 0.1915005065 | Q15: 1435.83761 | R15: 1313.9695 | S15: 121.86811 | T15: 0.09274805085
A16: Total Other Revenues | B16: 356.76341 | C16: 351.33073 | D16: 5.43268 | E16: 0.01546315063 | G16: 683.22883 | H16: 630.16903 | I16: 53.0598 | J16: 0.08419931395 | L16: 1041.22266 | M16: 873.87513 | N16: 167.34753 | O16: 0.1915005065 | Q16: 1435.83761 | R16: 1313.9695 | S16: 121.86811 | T16: 0.09274805085
A18: Total Revenues
A19: Classified | B19: 5963.60386 | C19: 6652.90519 | D19: -689.30133 | E19: -0.1036090716 | G19: 12207.27403 | H19: 10806.94067 | I19: 1400.33336 | J19: 0.1295772229 | L19: 18269.57252 | M19: 16477.36373 | N19: 1792.20879 | O19: 0.1087679327 | Q19: 24730.19746 | R19: 22814.77098 | S19: 1915.42648 | T19: 0.08395554273
A20: Total Revenues | B20: 5963.60386 | C20: 6652.90519 | D20: -689.30133 | E20: -0.1036090716 | G20: 12207.27403 | H20: 10806.94067 | I20: 1400.33336 | J20: 0.1295772229 | L20: 18269.57252 | M20: 16477.36373 | N20: 1792.20879 | O20: 0.1087679327 | Q20: 24730.19746 | R20: 22814.77098 | S20: 1915.42648 | T20: 0.08395554273
A22: EBITDA
A23: Classified | B23: 1137.55469 | C23: 1627.0456 | D23: -489.49091 | E23: -0.3008464606 | G23: 2358.0895 | H23: 1927.60874 | I23: 430.48076 | J23: 0.2233237228 | L23: 3666.7387 | M23: 3340.33265 | N23: 326.40605 | O23: 0.09771663011 | Q23: 5056.41201 | R23: 4827.40721 | S23: 229.0048 | T23: 0.04743846749
A24: Total EBITDA | B24: 1137.55469 | C24: 1627.0456 | D24: -489.49091 | E24: -0.3008464606 | G24: 2358.0895 | H24: 1927.60874 | I24: 430.48076 | J24: 0.2233237228 | L24: 3666.7387 | M24: 3340.33265 | N24: 326.40605 | O24: 0.09771663011 | Q24: 5056.41201 | R24: 4827.40721 | S24: 229.0048 | T24: 0.04743846749
A26: EBITDA Margin
A27: Classified | B27: 0.1907495395 | C27: 0.2445616695 | D27: -5.381212997 | G27: 0.19317085 | H27: 0.1783676619 | I27: 1.480318802 | L27: 0.2007019429 | M27: 0.2027225171 | N27: -0.2020574208 | Q27: 0.2044630666 | R27: 0.211591307 | S27: -0.7128240387
A28: Total EBITDA Margin | B28: 0.1907495395 | C28: 0.2445616695 | D28: -5.381212997 | G28: 0.19317085 | H28: 0.1783676619 | I28: 1.480318802 | L28: 0.2007019429 | M28: 0.2027225171 | N28: -0.2020574208 | Q28: 0.2044630666 | R28: 0.211591307 | S28: -0.7128240387
A30: EBIT
A31: Classified | B31: 752.73213 | C31: 1224.34794 | D31: -471.61581 | E31: -0.3851975362 | G31: 1555.42428 | H31: 1120.92728 | I31: 434.497 | J31: 0.387622826 | L31: 2449.54571 | M31: 2106.62452 | N31: 342.92119 | O31: 0.1627823026 | Q31: 3405.48532 | R31: 3141.66663 | S31: 263.81869 | T31: 0.08397411981
A32: Total EBIT | B32: 752.73213 | C32: 1224.34794 | D32: -471.61581 | E32: -0.3851975362 | G32: 1555.42428 | H32: 1120.92728 | I32: 434.497 | J32: 0.387622826 | L32: 2449.54571 | M32: 2106.62452 | N32: 342.92119 | O32: 0.1627823026 | Q32: 3405.48532 | R32: 3141.66663 | S32: 263.81869 | T32: 0.08397411981
A34: EBIT Margin
A35: Classified | B35: 0.1262210146 | C35: 0.184032074 | D35: -5.781105934 | G35: 0.1274178229 | H35: 0.103722905 | I35: 2.369491791 | L35: 0.1340778886 | M35: 0.1278496096 | N35: 0.6228279056 | Q35: 0.137705545 | R35: 0.137703185 | S35: 0.0002359988678
A36: Total EBIT Margin | B36: 0.1262210146 | C36: 0.184032074 | D36: -5.781105934 | G36: 0.1274178229 | H36: 0.103722905 | I36: 2.369491791 | L36: 0.1340778886 | M36: 0.1278496096 | N36: 0.6228279056 | Q36: 0.137705545 | R36: 0.137703185 | S36: 0.0002359988678
A38: Comparable EBITDA
A39: Classified | B39: 1139.12641 | C39: 1696.21712 | D39: -557.09071 | E39: -0.3284312506 | G39: 2358.0895 | H39: 1992.78182 | I39: 365.30768 | J39: 0.1833154419 | L39: 3666.7387 | M39: 3397.36188 | N39: 269.37682 | O39: 0.07928999898 | Q39: 5056.41201 | R39: 4818.12234 | S39: 238.28967 | T39: 0.04945695713
A40: Total comparable EBITDA | B40: 1139.12641 | C40: 1696.21712 | D40: -557.09071 | E40: -0.3284312506 | G40: 2358.0895 | H40: 1992.78182 | I40: 365.30768 | J40: 0.1833154419 | L40: 3666.7387 | M40: 3397.36188 | N40: 269.37682 | O40: 0.07928999898 | Q40: 5056.41201 | R40: 4818.12234 | S40: 238.28967 | T40: 0.04945695713

Sheet Classified 19vs21
A1: CLASSIFIED
A3: Thousand Euro | B3: IFRS | G3: IFRS | L3: IFRS | Q3: IFRS
B4: 1Q21 | C4: 1Q19 | D4: Var Abs | E4: Var % | G4: 1H21 | H4: 1H19 | I4: Var Abs | J4: Var % | L4: 9M21 | M4: 9M19 | N4: Var Abs | O4: Var % | Q4: 2021 | R4: 2019 | S4: Var Abs | T4: Var %
A6: Circulation Revenues
A7: Classified | B7: 0 | C7: 0 | D7: =B7-C7 -> 0 | E7: n.a. | G7: 0 | H7: 0 | I7: =G7-H7 -> 0 | J7: n.a. | L7: 0 | M7: 0 | N7: 0 | O7: n.a. | Q7: 0 | R7: 0 | S7: 0 | T7: n.a.
A8: Total Circulation Revenues | B8: 0 | C8: 0 | D8: =B8-C8 -> 0 | E8: n.a. | G8: 0 | H8: 0 | I8: =G8-H8 -> 0 | J8: n.a. | L8: 0 | M8: 0 | N8: 0 | O8: n.a. | Q8: 0 | R8: 0 | S8: 0 | T8: n.a.
A10: Advertising Revenues
A11: Classified | B11: 5606.84045 | C11: 6385.19171 | D11: -778.35126 | E11: =D11/C11 -> -0.1218994347 | G11: 11524.0452 | H11: 13232.65708 | I11: =G11-H11 -> -1708.61188 | J11: =I11/H11 -> -0.1291208462 | L11: 17228.34986 | M11: 19871.6042 | N11: -2643.25434 | O11: -0.133016656 | Q11: 23294.35985 | R11: 26509.46398 | S11: -3215.10413 | T11: -0.1212813708
A12: Total Advertising Revenues | B12: 5606.84045 | C12: 6385.19171 | D12: -778.35126 | E12: -0.1218994347 | G12: 11524.0452 | H12: 13232.65708 | I12: -1708.61188 | J12: -0.1291208462 | L12: 17228.34986 | M12: 19871.6042 | N12: -2643.25434 | O12: -0.133016656 | Q12: 23294.35985 | R12: 26509.46398 | S12: -3215.10413 | T12: -0.1212813708
A14: Other Revenues
A15: Classified | B15: 356.76341 | C15: 328.3923 | D15: 28.37111 | E15: 0.08639395625 | G15: 683.22883 | H15: 691.8122 | I15: =G15-H15 -> -8.58337 | J15: =I15/H15 -> -0.012407081 | L15: 1041.22266 | M15: 1013.48645 | N15: 27.73621 | O15: 0.02736712464 | Q15: 1435.83761 | R15: 1321.81098 | S15: 114.02663 | T15: 0.08626545832
A16: Total Other Revenues | B16: 356.76341 | C16: 328.3923 | D16: 28.37111 | E16: 0.08639395625 | G16: 683.22883 | H16: 691.8122 | I16: -8.58337 | J16: -0.012407081 | L16: 1041.22266 | M16: 1013.48645 | N16: 27.73621 | O16: 0.02736712464 | Q16: 1435.83761 | R16: 1321.81098 | S16: 114.02663 | T16: 0.08626545832
A18: Total Revenues
A19: Classified | B19: 5963.60386 | C19: 6713.58401 | D19: -749.98015 | E19: -0.1117108461 | G19: 12207.27403 | H19: 13924.46928 | I19: =G19-H19 -> -1717.19525 | J19: =I19/H19 -> -0.1233221328 | L19: 18269.57252 | M19: 20885.09065 | N19: -2615.51813 | O19: -0.1252337456 | Q19: 24730.19746 | R19: 27831.27496 | S19: -3101.0775 | T19: -0.1114241983
A20: Total Revenues | B20: 5963.60386 | C20: 6713.58401 | D20: -749.98015 | E20: -0.1117108461 | G20: 12207.27403 | H20: 13924.46928 | I20: -1717.19525 | J20: -0.1233221328 | L20: 18269.57252 | M20: 20885.09065 | N20: -2615.51813 | O20: -0.1252337456 | Q20: 24730.19746 | R20: 27831.27496 | S20: -3101.0775 | T20: -0.1114241983
A22: EBITDA
A23: Classified | B23: 1137.55469 | C23: 550.80492 | D23: 586.74977 | E23: 1.065258767 | G23: 2358.0895 | H23: 2330.86469 | I23: =G23-H23 -> 27.22481 | J23: =I23/H23 -> 0.01168013318 | L23: 3666.7387 | M23: 4072.77518 | N23: -406.03648 | O23: -0.09969528443 | Q23: 5056.41201 | R23: 5975.64267 | S23: -919.23066 | T23: -0.1538295897
A24: Total EBITDA | B24: 1137.55469 | C24: 550.80492 | D24: 586.74977 | E24: 1.065258767 | G24: 2358.0895 | H24: 2330.86469 | I24: 27.22481 | J24: 0.01168013318 | L24: 3666.7387 | M24: 4072.77518 | N24: -406.03648 | O24: -0.09969528443 | Q24: 5056.41201 | R24: 5975.64267 | S24: -919.23066 | T24: -0.1538295897
A26: EBITDA Margin
A27: Classified | B27: 0.1907495395 | C27: 0.0820433496 | D27: =+(B27-C27)*100 -> 10.87061899 | G27: 0.19317085 | H27: 0.1673934312 | I27: =+(G27-H27)*100 -> 2.577741878 | L27: 0.2007019429 | M27: 0.1950087384 | N27: 0.5693204414 | Q27: 0.2044630666 | R27: 0.2147096272 | S27: -0.01024656057
A28: Total EBITDA Margin | B28: 0.1907495395 | C28: 0.0820433496 | D28: =+(B28-C28)*100 -> 10.87061899 | G28: 0.19317085 | H28: 0.1673934312 | I28: =+(G28-H28)*100 -> 2.577741878 | L28: 0.2007019429 | M28: 0.1950087384 | N28: 0.5693204414 | Q28: 0.2044630666 | R28: 0.2147096272 | S28: -0.01024656057
A30: EBIT
A31: Classified | B31: 752.73213 | C31: 416.39267 | D31: 336.33946 | E31: 0.8077458712 | G31: 1555.42428 | H31: 1572.46928 | I31: =G31-H31 -> -17.045 | J31: =I31/H31 -> -0.01083963942 | L31: 2449.54571 | M31: 2862.56461 | N31: -413.0189 | O31: -0.144282822 | Q31: 3405.48532 | R31: 4396.55732 | S31: -991.072 | T31: -0.2254200111
A32: Total EBIT | B32: 752.73213 | C32: 416.39267 | D32: 336.33946 | E32: 0.8077458712 | G32: 1555.42428 | H32: 1572.46928 | I32: -17.045 | J32: -0.01083963942 | L32: 2449.54571 | M32: 2862.56461 | N32: -413.0189 | O32: -0.144282822 | Q32: 3405.48532 | R32: 4396.55732 | S32: -991.072 | T32: -0.2254200111
A34: EBIT Margin
A35: Classified | B35: 0.1262210146 | C35: 0.06202241148 | D35: =+(B35-C35)*100 -> 6.419860314 | G35: 0.1274178229 | H35: 0.1129284893 | I35: =+(G35-H35)*100 -> 1.448933357 | L35: 0.1340778886 | M35: 0.1370625897 | N35: -0.2984701022 | Q35: 0.137705545 | R35: 0.1579718258 | S35: -0.02026628078
A36: Total EBIT Margin | B36: 0.1262210146 | C36: 0.06202241148 | D36: =+(B36-C36)*100 -> 6.419860314 | G36: 0.1274178229 | H36: 0.1129284893 | I36: =+(G36-H36)*100 -> 1.448933357 | L36: 0.1340778886 | M36: 0.1370625897 | N36: -0.2984701022 | Q36: 0.137705545 | R36: 0.1579718258 | S36: -0.02026628078
A38: Comparable EBITDA
A39: Classified | B39: 1139.12641 | C39: 1040.92324 | D39: 98.20317 | E39: 0.09434237437 | G39: 2358.0895 | H39: 2852.66353 | I39: =G39-H39 -> -494.57403 | J39: =I39/H39 -> -0.1733727181 | L39: 3666.7387 | M39: 4597.9042 | N39: -931.1655 | O39: -0.2025195523 | Q39: 5056.41201 | R39: 6288.62929 | S39: -1232.21728 | T39: -0.1959436982
A40: Total comparable EBITDA | B40: 1139.12641 | C40: 1040.92324 | D40: 98.20317 | E40: 0.09434237437 | G40: 2358.0895 | H40: 2852.66353 | I40: -494.57403 | J40: -0.1733727181 | L40: 3666.7387 | M40: 4597.9042 | N40: -931.1655 | O40: -0.2025195523 | Q40: 5056.41201 | R40: 6288.62929 | S40: -1232.21728 | T40: -0.1959436982

Sheet Gastronomy & Agencies
A1: GASTRONOMY & AGENCIES
A3: Thousand Euro | B3: IFRS | G3: IFRS | L3: IFRS | Q3: IFRS
B4: 1Q21 | C4: 1Q20 | D4: Var Abs | E4: Var % | G4: 1H21 | H4: 1H20 | I4: Var Abs | J4: Var % | L4: 9M21 | M4: 9M20 | N4: Var Abs | O4: Var % | Q4: 2021 | R4: 2020 | S4: Var Abs | T4: Var %
A6: Circulation Revenues
A7: Gastronomy | B7: 0 | C7: 0 | D7: 0 | E7: n.a. | G7: 0 | H7: 0 | I7: 0 | J7: n.a. | L7: 0 | M7: 0 | N7: 0 | O7: n.a. | Q7: 0 | R7: 0 | S7: 0 | T7: n.a.
A8: Agencies | B8: 0 | C8: 0 | D8: 0 | E8: n.a. | G8: 0 | H8: 0 | I8: 0 | J8: n.a. | L8: 0 | M8: 0 | N8: 0 | O8: n.a. | Q8: 0 | R8: 0 | S8: 0 | T8: n.a.
A9: Total Circulation Revenues | B9: 0 | C9: 0 | D9: 0 | E9: 0.8361784663 | G9: 0 | H9: 0 | I9: 0 | J9: 0.2531811182 | L9: 0 | M9: 0 | N9: 0 | O9: 0.4883097781 | Q9: 0 | R9: 0 | S9: 0 | T9: 0.6096745925
A11: Advertising Revenues
A12: Gastronomy | B12: 0 | C12: 2.45 | D12: -2.45 | E12: -1 | G12: 133.32678 | H12: 2.45 | I12: 130.87678 | J12: n.r. | L12: 175.9005 | M12: 51.50058 | N12: 124.39992 | O12: n.r. | Q12: 380.08817 | R12: 239.61958 | S12: 140.46859 | T12: 0.5862149913
A13: Agencies | B13: 0 | C13: 0 | D13: 0 | E13: n.a. | G13: 0 | H13: 0 | I13: 0 | J13: n.a. | L13: 0 | M13: 0 | N13: 0 | O13: n.a. | Q13: 0 | R13: 0 | S13: 0 | T13: n.a.
A14: Total Advertising Revenues | B14: 0 | C14: 2.45 | D14: -2.45 | E14: -1.564945517 | G14: 133.32678 | H14: 2.45 | I14: 130.87678 | J14: 0.2531811182 | L14: 175.9005 | M14: 51.50058 | N14: 124.39992 | O14: 0.4883097781 | Q14: 380.08817 | R14: 239.61958 | S14: 140.46859 | T14: 0.6096745925
A16: Other Revenues
A17: Gastronomy | B17: 348.73472 | C17: 3097.39015 | D17: -2748.65543 | E17: -0.8874101411 | G17: 3659.69298 | H17: 3127.15447 | I17: 532.53851 | J17: 0.1702949167 | L17: 4534.9225 | M17: 3305.69165 | N17: 1229.23085 | O17: 0.3718528466 | Q17: 8620.38544 | R17: 4302.61347 | S17: 4317.77197 | T17: n.r.
A18: Agencies | B18: 2572.0361 | C18: 2870.2348 | D18: -298.1987 | E18: -0.1038934863 | G18: 5777.07305 | H18: 4271.16076 | I18: 1505.91229 | J18: 0.3525768227 | L18: 9195.7911 | M18: 6648.59432 | N18: 2547.19678 | O18: 0.3831180934 | Q18: 14268.05138 | R18: 10868.68013 | S18: 3399.37125 | T18: 0.3127676231
A19: Total Other Revenues | B19: 2920.77082 | C19: 5967.62495 | D19: -3046.85413 | E19: -1.564945517 | G19: 9436.76603 | H19: 7398.31523 | I19: 2038.4508 | J19: 0.2531811182 | L19: 13730.7136 | M19: 9954.28597 | N19: 3776.42763 | O19: 0.4883097781 | Q19: 22888.43682 | R19: 15171.2936 | S19: 7717.14322 | T19: 0.6096745925
A21: Total Revenues
A22: Gastronomy | B22: 348.73472 | C22: 3099.84015 | D22: -2751.10543 | E22: -0.887499128 | G22: 3793.01976 | H22: 3129.60447 | I22: 663.41529 | J22: 0.2119805542 | L22: 4710.823 | M22: 3357.19223 | N22: 1353.63077 | O22: 0.4032032357 | Q22: 9000.47361 | R22: 4542.23305 | S22: 4458.24056 | T22: 0.9815085468
A23: Agencies | B23: 2572.0361 | C23: 2870.2348 | D23: -298.1987 | E23: -0.1038934863 | G23: 5777.07305 | H23: 4271.16076 | I23: 1505.91229 | J23: 0.3525768227 | L23: 9195.7911 | M23: 6648.59432 | N23: 2547.19678 | O23: 0.3831180934 | Q23: 14268.05138 | R23: 10868.68013 | S23: 3399.37125 | T23: 0.3127676231
A24: Total Revenues | B24: 2920.77082 | C24: 5970.07495 | D24: -3049.30413 | E24: -0.5107647987 | G24: 9570.09281 | H24: 7400.76523 | I24: 2169.32758 | J24: 0.2931220641 | L24: 13906.6141 | M24: 10005.78655 | N24: 3900.82755 | O24: 0.3898571622 | Q24: 23268.52499 | R24: 15410.91318 | S24: 7857.61181 | T24: 0.5098732125
A26: EBITDA
A27: Gastronomy | B27: -345.43591 | C27: 951.77353 | D27: -1297.20944 | E27: -1.362939186 | G27: 819.65155 | H27: 624.8525 | I27: 194.79905 | J27: 0.3117520535 | L27: 570.42785 | M27: 354.8989 | N27: 215.52895 | O27: 0.6072967541 | Q27: 1463.13023 | R27: 417.11209 | S27: 1046.01814 | T27: n.r.
A28: Agencies | B28: -297.78686 | C28: 165.4409 | D28: -463.22776 | E28: -2.799959139 | G28: 10.45259 | H28: 1.19139 | I28: 9.2612 | J28: n.r. | L28: 418.7281 | M28: 272.78611 | N28: 145.94199 | O28: 0.5350052098 | Q28: 1561.73197 | R28: 1403.87346 | S28: 157.85851 | T28: 0.1124449706
A29: Total EBITDA | B29: -643.22277 | C29: 1117.21443 | D29: -1760.4372 | E29: -1.575737972 | G29: 830.10414 | H29: 626.04389 | I29: 204.06025 | J29: 0.3259519872 | L29: 989.15595 | M29: 627.68501 | N29: 361.47094 | O29: 0.5758795164 | Q29: 3024.8622 | R29: 1820.98555 | S29: 1203.87665 | T29: 0.661112687
A31: EBITDA Margin
A32: Gastronomy | B32: -0.9905406321 | C32: 0.3070395517 | D32: -129.7580184 | G32: 0.2160947218 | H32: 0.1996586169 | I32: 1.643610492 | L32: 0.1210887885 | M32: 0.1057130113 | N32: 1.537577726 | Q32: 0.162561471 | R32: 0.0918297422 | S32: 7.073172883
A33: Agencies | B33: -0.1157786471 | C33: 0.05764019724 | D33: -17.34188444 | G33: 0.001809322802 | H33: 0.0002789382247 | I33: 0.1530384578 | L33: 0.04553475557 | M33: 0.04102914043 | N33: 0.4505615141 | Q33: 0.1094565704 | R33: 0.1291668761 | S33: -1.971030575
A34: Total EBITDA Margin | B34: -0.220223636 | C34: 0.1871357461 | D34: -40.73593821 | G34: 0.08673940331 | H34: 0.08459177809 | I34: 0.2147625228 | L34: 0.07112845319 | M34: 0.0627322007 | N34: 0.8396252488 | Q34: 0.129998021 | R34: 0.1181620796 | S34: 1.183594138
A36: EBIT
A37: Gastronomy | B37: -359.20221 | C37: 948.67848 | D37: -1307.88069 | E37: -1.378634298 | G37: 791.86221 | H37: 618.66402 | I37: 173.19819 | J37: 0.2799551686 | L37: 381.68822 | M37: 339.9698 | N37: 41.71842 | O37: 0.122712135 | Q37: 1210.43891 | R37: 392.49244 | S37: 817.94647 | T37: n.r.
A38: Agencies | B38: -527.14004 | C38: 145.81172 | D38: -672.95176 | E38: -4.615210355 | G38: -447.44467 | H38: -459.07619 | I38: 11.63152 | J38: 0.02533679649 | L38: -268.98857 | M38: -418.13386 | N38: 149.14529 | O38: 0.3566926869 | Q38: 635.17952 | R38: 480.85198 | S38: 154.32754 | T38: 0.3209460425
A39: Total EBIT | B39: -886.34225 | C39: 1094.4902 | D39: -1980.83245 | E39: -1.809822007 | G39: 344.41754 | H39: 159.58783 | I39: 184.82971 | J39: n.r. | L39: 112.69965 | M39: -78.16406 | N39: 190.86371 | O39: n.r. | Q39: 1845.61843 | R39: 873.34442 | S39: 972.27401 | T39: n.r.
A41: EBIT Margin
A42: Gastronomy | B42: -0.9905406321 | C42: 0.3070395517 | D42: -129.7580184 | G42: 0.2160947218 | H42: 0.1996586169 | I42: 1.643610492 | L42: 0.1210887885 | M42: 0.1057130113 | N42: 1.537577726 | Q42: 0.162561471 | R42: 0.0918297422 | S42: 7.073172883
A43: Agencies | B43: -0.1157786471 | C43: 0.05764019724 | D43: -17.34188444 | G43: 0.001809322802 | H43: 0.0002789382247 | I43: 0.1530384578 | L43: 0.04553475557 | M43: 0.04102914043 | N43: 0.4505615141 | Q43: 0.1094565704 | R43: 0.1291668761 | S43: -1.971030575
A44: Total EBIT Margin | B44: -0.3034617588 | C44: 0.1833293902 | G44: 0.0359889446 | H44: 0.02156369308 | L44: 0.008104032311 | M44: -0.007811885613 | Q44: 0.07931823916 | R44: 0.05667051717
A46: Comparable EBITDA
A47: Gastronomy | B47: -342.44138 | C47: 952.57682 | D47: -1295.0182 | E47: -1.359489516 | G47: 819.65155 | H47: 625.65579 | I47: 193.99576 | J47: 0.3100678729 | L47: 570.42785 | M47: 355.70219 | N47: 214.72566 | O47: 0.6036669608 | Q47: 1463.13023 | R47: 417.91538 | S47: 1045.21485 | T47: n.r.
A48: Agencies | B48: -296.69172 | C48: 178.7413 | D48: -475.43302 | E48: -2.659894607 | G48: 10.45259 | H48: 36.74179 | I48: -26.2892 | J48: -0.7155122274 | L48: 418.7281 | M48: 308.91479 | N48: 109.81331 | O48: 0.3554809079 | Q48: 1561.73197 | R48: 1461.26083 | S48: 100.47114 | T48: 0.06875647245
A49: Total comparable EBITDA | B49: -639.1331 | C49: 1131.31812 | D49: -1770.45122 | E49: -1.564945517 | G49: 830.10414 | H49: 662.39758 | I49: 167.70656 | J49: 0.2531811182 | L49: 989.15595 | M49: 664.61698 | N49: 324.53897 | O49: 0.4883097781 | Q49: 3024.8622 | R49: 1879.17621 | S49: 1145.68599 | T49: 0.6096745925

Sheet Gastronomy & Agencies 19vs21
A1: GASTRONOMY & AGENCIES
A3: Thousand Euro | B3: IFRS | G3: IFRS | L3: IFRS | Q3: IFRS
B4: 1Q21 | C4: 1Q19 | D4: Var Abs | E4: Var % | G4: 1H21 | H4: 1H19 | I4: Var Abs | J4: Var % | L4: 9M21 | M4: 9M19 | N4: Var Abs | O4: Var % | Q4: 2021 | R4: 2019 | S4: Var Abs | T4: Var %
A6: Circulation Revenues
A7: Gastronomy | B7: 0 | C7: 0 | D7: =B7-C7 -> 0 | E7: n.a. | G7: 0 | H7: 0 | I7: =G7-H7 -> 0 | J7: n.a. | L7: 0 | M7: 6.73092 | N7: =L7-M7 -> -6.73092 | O7: =N7/M7 -> -1 | Q7: 0 | R7: 6.73092 | S7: -6.73092 | T7: -1
A8: Agencies | B8: 0 | C8: 0 | D8: =B8-C8 -> 0 | E8: n.a. | G8: 0 | H8: 0 | I8: 0 | J8: n.a. | L8: 0 | M8: 0 | N8: =L8-M8 -> 0 | O8: n.a. | Q8: 0 | R8: 0 | S8: 0 | T8: n.a.
A9: Total Circulation Revenues | B9: 0 | C9: 0 | D9: 0 | E9: n.a. | G9: 0 | H9: 0 | I9: 0 | J9: n.a. | L9: 0 | M9: 6.73092 | N9: -6.73092 | O9: =N9/M9 -> -1 | Q9: 0 | R9: 6.73092 | S9: -6.73092 | T9: -1
A11: Advertising Revenues
A12: Gastronomy | B12: 0 | C12: 0 | D12: 0 | E12: n.a. | G12: 133.32678 | H12: 112.12953 | I12: =G12-H12 -> 21.19725 | J12: n.a. | L12: 175.9005 | M12: 281.33253 | N12: -105.43203 | O12: -0.3747594706 | Q12: 380.08817 | R12: 585.76276 | S12: -205.67459 | T12: -0.3511226798
A13: Agencies | B13: 0 | C13: 0 | D13: 0 | E13: n.a. | G13: 0 | H13: 0 | I13: 0 | J13: n.a. | L13: 0 | M13: 0 | N13: 0 | O13: n.a. | Q13: 0 | R13: 0 | S13: 0 | T13: n.a.
A14: Total Advertising Revenues | B14: 0 | C14: 0 | D14: 0 | E14: n.a. | G14: 133.32678 | H14: 112.12953 | I14: 21.19725 | J14: n.a. | L14: 175.9005 | M14: 281.33253 | N14: -105.43203 | O14: -0.3747594706 | Q14: 380.08817 | R14: 585.76276 | S14: -205.67459 | T14: -0.3511226798
A16: Other Revenues
A17: Gastronomy | B17: 348.73472 | C17: 2779.86074 | D17: -2431.12602 | E17: =D17/C17 -> -0.8745495719 | G17: 3659.69298 | H17: 4286.39053 | I17: =G17-H17 -> -626.69755 | J17: =I17/H17 -> -0.1462063584 | L17: 4534.9225 | M17: 4611.20099 | N17: -76.27849 | O17: -0.0165420007 | Q17: 8620.38544 | R17: 7393.94932 | S17: 1226.43612 | T17: 0.1658702362
A18: Agencies | B18: 2572.0361 | C18: 75.90868 | D18: 2496.12742 | E18: 32.88329372 | G18: 5777.07305 | H18: 317.07324 | I18: 5459.99981 | J18: 17.21999564 | L18: 9195.7911 | M18: 1284.77602 | N18: 7911.01508 | O18: 6.157505244 | Q18: 14268.05138 | R18: 5706.27748 | S18: 8561.7739 | T18: 1.500413173
A19: Total Other Revenues | B19: 2920.77082 | C19: 2855.76942 | D19: 65.0014 | E19: 0.02276143149 | G19: 9436.76603 | H19: 4603.46377 | I19: 4833.30226 | J19: 1.049927294 | L19: 13730.7136 | M19: =M17+M18 -> 5895.97701 | N19: 7834.73659 | O19: 1.328827534 | Q19: 22888.43682 | R19: 13100.2268 | S19: 9788.21002 | T19: 0.7471786687
A21: Total Revenues
A22: Gastronomy | B22: 348.73472 | C22: 2779.86074 | D22: -2431.12602 | E22: -0.8745495719 | G22: 3793.01976 | H22: 4398.52006 | I22: =G22-H22 -> -605.5003 | J22: =I22/H22 -> -0.1376600065 | L22: 4710.823 | M22: 4899.26444 | N22: -188.44144 | O22: -0.03846321061 | Q22: 9000.47361 | R22: 7986.443 | S22: 1014.03061 | T22: 0.1269689911
A23: Agencies | B23: 2572.0361 | C23: 75.90868 | D23: 2496.12742 | E23: 32.88329372 | G23: 5777.07305 | H23: 317.07324 | I23: 5459.99981 | J23: 17.21999564 | L23: 9195.7911 | M23: 1284.77602 | N23: 7911.01508 | O23: 6.157505244 | Q23: 14268.05138 | R23: 5706.27748 | S23: 8561.7739 | T23: 1.500413173
A24: Total Revenues | B24: 2920.77082 | C24: 2855.76942 | D24: 65.0014 | E24: 0.02276143149 | G24: 9570.09281 | H24: 4715.5933 | I24: 4854.49951 | J24: 1.029456783 | L24: 13906.6141 | M24: 6184.04046 | N24: 7722.57364 | O24: 1.24879093 | Q24: 23268.52499 | R24: 13692.72048 | S24: 9575.80451 | T24: 0.699335426
A26: EBITDA
A27: Gastronomy | B27: -345.43591 | C27: 744.40312 | D27: -1089.83903 | E27: -1.464044146 | G27: 819.65155 | H27: 749.333 | I27: =G27-H27 -> 70.31855 | J27: =I27/H27 -> 0.09384152306 | L27: 570.42785 | M27: 593.11744 | N27: -22.68959 | O27: -0.03825480161 | Q27: 1463.13023 | R27: 1123.33046 | S27: 339.79977 | T27: 0.3024931506
A28: Agencies | B28: -297.78686 | C28: -129.26611 | D28: -168.52075 | E28: 1.303673097 | G28: 10.45259 | H28: -220.34468 | I28: 230.79727 | J28: -1.047437451 | L28: 418.7281 | M28: 7.83217 | N28: 410.89593 | O28: 52.46259083 | Q28: 1561.73197 | R28: 762.32119 | S28: 799.41078 | T28: 1.048653495
A29: Total EBITDA | B29: -643.22277 | C29: 615.13701 | D29: -1258.35978 | E29: -2.045657731 | G29: 830.10414 | H29: 528.98832 | I29: 301.11582 | J29: 0.5692296193 | L29: 989.15595 | M29: 600.94961 | N29: 388.20634 | O29: 0.645988172 | Q29: 3024.8622 | R29: 1885.65165 | S29: 1139.21055 | T29: 0.6041468741
A31: EBITDA Margin
A32: Gastronomy | B32: -0.9905406321 | C32: 0.2677843207 | D32: =+(B32-C32)*100 -> -125.8324953 | G32: 0.2160947218 | H32: 0.1703602552 | I32: =+(G32-H32)*100 -> 4.573446663 | L32: 0.1210887885 | M32: 0.1210625487 | N32: =+(L32-M32)*100 -> 0.002623979131 | Q32: 0.162561471 | R32: 0.1406546644 | S32: 0.02190680662
A33: Agencies | B33: -0.1157786471 | C33: -1.702916057 | D33: =+(B33-C33)*100 -> 158.7137409 | G33: 0.001809322802 | H33: -0.6949330697 | I33: =+(G33-H33)*100 -> 69.67423925 | L33: 0.04553475557 | M33: 0.006096136508 | N33: =+(L33-M33)*100 -> 3.943861906 | Q33: 0.1094565704 | R33: 0.1335934316 | S33: -0.02413686119
A34: Total EBITDA Margin | B34: -0.220223636 | C34: 0.2154014976 | D34: =+(B34-C34)*100 -> -43.56251337 | G34: 0.08673940331 | H34: 0.1121785291 | I34: =+(G34-H34)*100 -> -2.543912574 | L34: 0.07112845319 | M34: 0.09717750294 | N34: -2.604904976 | Q34: 0.129998021 | R34: 0.1377119801 | S34: -0.007713959094
A36: EBIT
A37: Gastronomy | B37: -359.20221 | C37: 740.98204 | D37: -1100.18425 | E37: -1.484765069 | G37: 791.86221 | H37: 742.40045 | I37: =G37-H37 -> 49.46176 | J37: =I37/H37 -> 0.06662409755 | L37: 381.68822 | M37: 582.05173 | N37: -200.36351 | O37: -0.3442366025 | Q37: 1210.43891 | R37: 1109.47312 | S37: 100.96579 | T37: 0.09100336744
A38: Agencies | B38: -527.14004 | C38: -130.7762 | D38: -396.36384 | E38: 3.030856073 | G38: -447.44467 | H38: -223.97423 | I38: -223.47044 | J38: 0.9977506787 | L38: -268.98857 | M38: -9.34477 | N38: -259.6438 | O38: 27.78493211 | Q38: 635.17952 | R38: 731.27817 | S38: -96.09865 | T38: -0.1314118949
A39: Total EBIT | B39: -886.34225 | C39: 610.20584 | D39: -1496.54809 | E39: -2.452529936 | G39: 344.41754 | H39: 518.42622 | I39: -174.00868 | J39: -0.3356479153 | L39: 112.69965 | M39: 572.70696 | N39: -460.00731 | O39: -0.8032158541 | Q39: 1845.61843 | R39: 1840.75129 | S39: 4.86714 | T39: 0.002644105169
A41: EBIT Margin
A42: Gastronomy | B42: -0.9905406321 | C42: 0.2677843207 | D42: =+(B42-C42)*100 -> -125.8324953 | G42: 0.2160947218 | H42: 0.1703602552 | I42: =+(G42-H42)*100 -> 4.573446663 | L42: 0.1210887885 | M42: 0.1210625487 | N42: =+(L42-M42)*100 -> 0.002623979131 | Q42: 0.162561471 | R42: 0.1406546644 | S42: 0.02190680662
A43: Agencies | B43: -0.1157786471 | C43: -1.702916057 | D43: =+(B43-C43)*100 -> 158.7137409 | G43: 0.001809322802 | H43: -0.6949330697 | I43: =+(G43-H43)*100 -> 69.67423925 | L43: 0.04553475557 | M43: 0.006096136508 | N43: =+(L43-M43)*100 -> 3.943861906 | Q43: 0.1094565704 | R43: 0.1335934316 | S43: -0.02413686119
A44: Total EBIT Margin | B44: -0.3034617588 | C44: 0.2136747581 | D44: =+(B44-C44)*100 -> -51.71365169 | G44: 0.0359889446 | H44: 0.1099387048 | I44: =+(G44-H44)*100 -> -7.394976025 | L44: 0.008104032311 | M44: 0.09261048075 | N44: -8.450644844 | Q44: 0.07931823916 | R44: 0.1344328392 | S44: -0.05511460001
A46: Comparable EBITDA
A47: Gastronomy | B47: -342.44138 | C47: 745.39256 | D47: -1087.83394 | E47: -1.459410783 | G47: 819.65155 | H47: 758.16013 | I47: =G47-H47 -> 61.49142 | J47: =I47/H47 -> 0.08110611145 | L47: 570.42785 | M47: 595.23908 | N47: -24.81123 | O47: -0.04168279744 | Q47: 1463.13023 | R47: 1125.67283 | S47: 337.4574 | T47: 0.2997828419
A48: Agencies | B48: -296.69172 | C48: -129.26611 | D48: -167.42561 | E48: 1.295201117 | G48: 10.45259 | H48: -220.31398 | I48: 230.76657 | J48: -1.047444061 | L48: 418.7281 | M48: 28.72473 | N48: 390.00337 | O48: 13.57726844 | Q48: 1561.73197 | R48: 806.31985 | S48: 755.41212 | T48: 0.9368640993
A49: Total comparable EBITDA | B49: -639.1331 | C49: 616.12645 | D49: -1255.25955 | E49: -2.037340793 | G49: 830.10414 | H49: 537.84615 | I49: 292.25799 | J49: 0.5433858549 | L49: 989.15595 | M49: 623.96381 | N49: 365.19214 | O49: 0.5852777583 | Q49: 3024.8622 | R49: 1931.99268 | S49: 1092.86952 | T49: 0.5656695966
